{"text_format":"1","workbook":"xlsx","n_sheets":5,"sheets":["Анкета","Технология 2","Технология 3","Технология 4","Технология 5"],"not_rendered":{"charts":0,"images":0,"macros":1,"external_links":6,"defined_names":511,"comments":0,"pivot_tables":0},"unopened":[],"bounds":{"document_bytes":16777216,"sheet_cells":100000,"rows_first":2000,"rows_last":500,"rows_between":2000,"halvings":0,"cell_chars":16384,"cell_head_chars":4096},"cells_cut":0,"cells_raw":0,"read":"whole","date_system":"1900"}

{"sheet":"Анкета","index":0,"n_rows":268,"n_cols":6,"rows_kept":268,"cut":false,"hidden":false,"merged":[[201,1,205,1],[213,1,217,1],[168,1,171,1],[172,1,175,1],[176,1,178,1],[181,1,181,4],[189,1,193,1],[144,1,148,1],[149,1,153,1],[155,1,160,1],[161,1,166,1],[115,1,124,1],[125,1,133,1],[134,1,137,1],[141,1,143,1],[102,1,106,1],[89,1,91,1],[107,1,111,1],[112,1,114,1],[267,1,267,4],[7,1,7,2],[18,1,18,4],[19,1,19,2],[39,1,39,4],[41,1,44,1],[45,1,48,1],[56,1,65,1],[66,1,68,1],[69,1,71,1],[72,1,74,1],[75,1,79,1],[258,1,260,1],[222,1,226,1],[227,1,231,1],[255,1,257,1],[234,1,242,1],[245,1,250,1],[261,1,263,1],[264,1,266,1],[243,1,243,4],[218,1,218,4],[219,1,221,1],[1,1,1,4],[4,1,4,4],[6,1,6,4],[30,1,30,4],[81,1,83,1],[33,1,37,1],[49,1,51,1],[86,1,88,1],[92,1,92,4],[93,1,96,1],[97,1,101,1],[3,2,3,4],[252,1,254,1],[2,2,2,4]]}
[]
[null,"Анкета для опроса компаний производителей домокомплектов"]
[null,null,"Настоящим подтверждаю, что ознакомлен и согласен с условиями предоставления информации, установленным в соглашении о защите и неразглашении конфиденциальной информации от ____2023 г. (ссылка на уловия ххх)."]
[null,null,"Настоящим подтверждаю, что анкета заполнена от имени организации надлежащим образом уполномоченным лицом, предоставленные сведения являются полными и достоверными."]
[null,"Анкета заполняется для каждой технологии производства отдельно.\nДля заполнения анкеты по второй технологии производства, пожалуйста, перейдите на лист \"Технология 2\"."]
[null,"№ п/п","Наименование параметра","Период - 2022 г.","Комментарий","Техническая информация"]
[null,"Раздел 1. Определение домокомплекта"]
[null,"1.1 В пунктах 1.1.1 - 1.1.9 описаны критерии определения домокомплекта. Укажите, являются ли перечисленные характеристики верно описывающими вашу продукцию, производимую по каждой из Ваших технологий производства.",null,null,"Для п. 1.1.1 - 1.1.9:\n1) Проставляется отметка ☑, если описанный критерий соответствует вашей технологии производства;\n2) Отметка не проставляется, если не соответствует."]
[null,"1.1.1","Готовая продукция является сборной конструкцией"]
[null,"1.1.2","Сборная конструкция предназначена для строительства индивидуального жилого дома"]
[null,"1.1.3","Не менее 70% деталей сборной конструкции произведено заводским способом (с использованием станков и оборудования)"]
[null,"1.1.4","Производство и сборка готовой продукции осуществляются в соответствии с проектной документацией"]
[null,"1.1.5","Сборная конструкция собирается на строительной площадке и не требует дополнительной обработки (обрезка, подгонка и т. д.)"]
[null,"1.1.6","Полный цикл строительства составляет менее 4 месяцев (производство, доставка, сборка на строительной площадке)"]
[null,"1.1.7","Конструкция устанавливается на фундамент, требования к которому содержатся в проектной документации"]
[null,"1.1.8","Построенную конструкцию можно разобрать, транспортировать и собрать снова"]
[null,"1.1.9","Сборная конструкция предусматривает наличие полостей для скрытой прокладки инженерных коммуникаций (электрика, водоподача и т. д.)"]
[null,"1.2 ","Укажите, сколько из перечисленных выше характеристик являются верно описывающими вашу продукцию, производимую по каждой из ваших технологий производства "]
[null,"Если в п. 1.2 вы указали 7 и более критериев, то ваша продукция определяется как Домокомплект и вы можете продолжить заполнять анкету данными по этой продукции. Если таким образом определилось две технологии производства или более, то заполните отдельные листы анкеты для каждой технологии производства."]
[null,"1.3 В пунктах 1.3.1 - 1.3.9 указаны виды материалов домокомплектов. Укажите все материалы, соответствующие каждой из Ваших технологий производства.",null,null,"Для п. 1.2.1 - 1.2.9:\n1) Проставляется отметка ☑, если описание из комментария соответствует вашей технологии производства;\n2) Отметка не проставляется, если не соответствует."]
[null,"1.3.1","Деревянно-панельные каркасные",null,"Завод - Производство каркасных плит, вставка окон;\nСтройплощадка - Сборка с помощью металлических крепежных элементов и т. д."]
[null,"1.3.2","Цилиндрованное бревно",null,"Завод - Нарезка бревна;\nСтройплощадка - Сборка с помощью нагелей и т. д."]
[null,"1.3.3","Профилированный брус ",null,"Завод - Нарезка бруса;\nСтройплощадка - Сборка с помощью металлических крепежных элементов  и т. д."]
[null,"1.3.4","Клееный брус",null,"Завод - Склейка конструкционной балки, нарезка деталей стен;\nСтройплощадка - Сборка с помощью металлических крепежных элементов и т. д."]
[null,"1.3.5","CLT \n(Cross laminated timber (перекрестно склеенная древесина))",null,"Завод - Склейка CLT-панели (несущие опоры, балки, плиты перекрытий и стеновые панели);\nСтройплощадка - Сборка с помощью металлических крепежных элементов и т. д."]
[null,"1.3.6","СИП \n(структурно изолированные панели)",null,"Завод - Склейка панели;\nСтройплощадка - Сборка с помощью пены и саморезов и т. д."]
[null,"1.3.7","Крупно-блочные (газобетонные, ж/б и др.)",null,"Завод - Изготовление блоков и плит;\nСтройплощадка - Сборка с помощью клея или пены и т. д."]
[null,"1.3.8","Легкие стальные тонкостенные конструкции",null,"Завод - Производство и сборка многослойных стеновых панелей;\nСтройплощадка - Сборка на основании металлического каркаса и т. д."]
[null,"1.3.9","Панельные из ж/б",null,"Завод - Изготовление ж/б панелей;\nСтройплощадка - Сборка с помощью сварки по закладным деталям и т. д."]
[null,"1.4 ","Укажите, количество технологий производства, которое вы выбрали выше"]
[null,"Раздел 2. Общая информация"]
[null,"2.1","Наименование компании",null,"Полное наименование указывается в соответствии с ЕГРЮЛ/ЕГРИП."]
[null,"2.2","ИНН",null,"Указывается в соответствии с ЕГРЮЛ/ЕГРИП."]
[null,"2.3","Вид деятельности компании:",null,"Проставляется отметка ☑ для одного или нескольких значений (указываются все виды деятельности компании с начала 2022 года)."]
[null,null,"производство домокомплектов"]
[null,null,"сборка домокомплектов"]
[null,null,"строительство частных домов по индивидуальному проекту на земле заказчика"]
[null,null,"комплексная застройка, предполагающая строительство частных домов и объектов инфраструктуры на земле застройщика с последующей передачей заказчику"]
[null,"2.4","Регион расположения производства",null,"Указывается субъект РФ (область, город) фактического расположения производственных мощностей. При наличии нескольких производств в разных регионах, указываются все."]
[null,"Раздел 3. Производство домокомплектов по технологии 1\nПросим вас оценить производство домокомплектов по технологии 1 за 2022 год\nЕсли ваша компания занимается производством домокомплектов менее года, приведите расчетный показатель за год исходя из данных за период производства"]
[null,"3.1","Выберете наименование технологии производства, если Ваша компания использует более одной технологии производства",null,"Выбирается из выпадающего списка название технологии производства в случае наличия у компании нескольких производств по различным технологиям.","Раскрывается, если в п. 1.2.1-1.2.9 выбрано более 1 варианта"]
[null,"3.2","Текущий объём производства домокомплектов по технологии 1:"]
[null,null,"в шт.",null,"Указывается значение количества производимых домокомплектов за год / квартал по технологии 1."]
[null,null,"в м²",null,"Указывается значение общей площади производимых домокомплектов за год / квартал по технологии 1."]
[null,null,"в млн руб.",null,"Указывается значение общей суммы производимых домокомплектов по рыночной цене за год / квартал по технологии 1."]
[null,"3.3","Прогнозный объём продаж домокомплектов в 2023 году по технологии 1:"]
[null,null,"в шт.",null,"Указывается значение количества производимых домокомплектов на прогнозный 2023 год по технологии 1."]
[null,null,"в м²",null,"Указывается значение общей площади производимых домокомплектов на прогнозный 2023 год по технологии 1."]
[null,null,"в млн руб.",null,"Указывается значение общей суммы производимых домокомплектов по рыночной цене на прогнозный 2023 год по технологии 1."]
[null,"3.4","Максимальный объём производственных мощностей без переоборудования и модернизации по технологии 1:"]
[null,null,"в шт.",null,"Указывается возможное значение количества производимых домокомплектов при условии максимальной возможной загрузки производственных мощностей (без переоборудования и модернизации) в пересчёте на год по технологии 1."]
[null,null,"в м²",null,"Указывается возможное значение общей площади производимых домокомплектов при условии максимальной возможной загрузки производственных мощностей (без переоборудования и модернизации) в пересчёте на год по технологии 1."]
[null,"3.5","Средняя себестоимость производства домокомплектов по технологии 1, млн руб.",null,"Указывается значение средней себестоимости производства домокомплектов по технологии 1 в млн руб. за год / квартал"]
[null,"3.6","Доля деталей сборной конструкции, произведённых заводским  способом (с использованием станков и оборудования) по технологии 1, %",null,"Указывается значение доли деталей сборной конструкции, которые производятся на заводе (с использованием станков и оборудования) и не требуют дополнительной обработки на стройплощадке по технологии 1."]
[null,"3.7","Среднее время, необходимое для производства домокомплекта по технологии 1, дней",null,"Указывается значение среднего времени производства домокомплекта без учета доработок проекта (только производственный цикл) в днях по технологии 1."]
[null,"3.8","Средний срок сборки домокомплекта по технологии 1, дней",null,"Указывается значение среднего времени в днях, необходимого для сборки домокомплекта по технологии 1, без учета доработок проекта."]
[null,"3.9","Основные факторы, ограничивающие потенциальный рост объёмов производства по технологии 1:",null,"Проставляется отметка ☑ для одного или нескольких значений (указываются все факторы, актуальные в настоящее время)."]
[null,null,"дефицит или высокая стоимость материалов"]
[null,null,"отсутствие комплектующих к иностранному оборудованию"]
[null,null,"нехватка помещений для производства"]
[null,null,"нехватка рабочей силы"]
[null,null,"отсутствие стабильного спроса на продукцию"]
[null,null,"отсутствие возможности получения льготного кредитования для инвестиций в расширение производственных площадей, замену или модернизацию оборудования и т. д."]
[null,null,"отсутствие возможности получения кредитования для увеличения оборотного капитала"]
[null,null,"отсутствие или нехватка мер государственной поддержки"]
[null,null,"иное",null,"Просьба расшифровать."]
[null,"3.10","Есть ли у Вас планы по увеличению объёма производства по технологии 1, предполагающие инвестиции в расширение производственных площадей, замену или модернизацию оборудования и т. д.:",null,"Проставляется отметка ◉ для одного из значений."]
[null,null,"да"]
[null,null,"нет"]
[null,"3.11","Готовы ли Вы пересмотреть планы по увеличению объёма производства, в случае, если государством будут разработаны программы льготного кредитования для этих целей:",null,"Проставляется отметка ◉ для одного из значений.",{"$f":"\"Раскрывается, если в п. \"&$B$67&\" выбрано «нет»\"","v":"Раскрывается, если в п. 3.10 выбрано «нет»"}]
[null,null,"да",null,null,{"$f":"\"Раскрывается, если в п. \"&$B$67&\" выбрано «нет»\"","v":"Раскрывается, если в п. 3.10 выбрано «нет»"}]
[null,null,"нет",null,null,"Раскрывается, если в п. 3.10 выбрано «нет»"]
[null,"3.12","На сколько планируется увеличить годовой объём производства по отношению к текущему объёму производства по технологии 1:",null,null,{"$f":"\"Раскрывается, если в п. \"&$B$67&\" выбрано «да»\"","v":"Раскрывается, если в п. 3.10 выбрано «да»"}]
[null,null,"в шт.",null,"Указывается потенциальный прирост общей площади производимых домокомплектов по технологии 1 в пересчете на год по отношению к текущему объёму производства за год при реализации планов по расширению производственных площадей.",{"$f":"\"Раскрывается, если в п. \"&$B$67&\" выбрано «да»\"","v":"Раскрывается, если в п. 3.10 выбрано «да»"}]
[null,null,"в м²",null,"Указывается потенциальный прирост количества производимых домокомплектов по технологии 1 в пересчете на год по отношению к текущему объёму производства за год при реализации планов по расширению производственных площадей.","Раскрывается, если в п. 3.10 выбрано «да»"]
[null,"3.13","Из каких источников финансирования планируется реализовать указанные планы по увеличению объёма производства:",null,"Проставляется отметка ☑ для одного или нескольких значений источников финансирования для целей, указанных в п. 3.10.","Раскрывается, если в п. 3.10 выбрано «да»"]
[null,null,"собственные средства",null,null,"Раскрывается, если в п. 3.10 выбрано «да»"]
[null,null,"кредитные средства",null,null,"Раскрывается, если в п. 3.10 выбрано «да»"]
[null,null,"субсидии",null,null,"Раскрывается, если в п. 3.10 выбрано «да»"]
[null,null,"иное",null,"Просьба расшифровать.","Раскрывается, если в п. 3.10 выбрано «да»"]
[null,"3.14","Какой объём кредитных средств требуется для реализации планов по увеличению объёма производства, млн руб.",null,"Указывается приблизительная оценка объёма кредитных средств, которые компания планирует привлечь на цели, указанные в п. 3.10.",{"$f":"\"Раскрывается, если в п. \"&$B$76&\" выбрано «кредитные средства»\"","v":"Раскрывается, если в п. 3.13 выбрано «кредитные средства»"}]
[null,"3.15","Возникает ли у Вас потребность в привлечении кредитных средств для увеличения оборотного капитала:",null,"Проставляется отметка ◉ для одного из значений."]
[null,null,"да"]
[null,null,"нет"]
[null,"3.16","Банки-партнёры по привлечению кредитных средств для инвестиций в увеличение объёма производства по технологии 1",null,"Указываются все банки-партнёры по привлечению кредитных средств для инвестиций в увеличение объёма производства по технологии 1."]
[null,"3.17","Доля оборудования иностранного производства, используемого в изготовлении домокомплектов по технологии 1, %",null,"Указывается оценка доли использования в производстве домокомплектов по технологии 1 иностранного оборудования от общего числа оборудования."]
[null,"3.18","Какие проблемы возникают при эксплуатации и содержании оборудования, используемого в производстве по технологии 1:"]
[null,null,"иностранного производства",null,"Просьба заполнить информацией о проблемах, возникающих при эксплуатации оборудования иностранного производства.",{"$f":"\"Раскрывается, если в п. \"&$B$86&\" внесено значение больше, чем 0%\"","v":"Раскрывается, если в п. 3.17 внесено значение больше, чем 0%"}]
[null,null,"российского производства",null,"Просьба заполнить информацией о проблемах, возникающих при эксплуатации оборудования российского производства.",{"$f":"\"Раскрывается, если в п. \"&$B$86&\" внесено значение больше, чем 100%\"","v":"Раскрывается, если в п. 3.17 внесено значение больше, чем 100%"}]
[null,"3.19","Планируется ли замена иностранного оборудования на российские аналоги:",null,"Проставляется отметка ◉ для одного из значений.",{"$f":"\"Раскрывается, если в п. \"&$B$86&\" внесено значение больше, чем 0%\"","v":"Раскрывается, если в п. 3.17 внесено значение больше, чем 0%"}]
[null,null,"да",null,null,"Раскрывается, если в п. 3.17 внесено значение больше, чем 0%"]
[null,null,"нет",null,null,"Раскрывается, если в п. 3.17 внесено значение больше, чем 0%"]
[null,"Раздел 4. Реализация и структура продаж домокомплектов по технологии 1 в 2022 году\nПросим вас оценить продажи домокомплектов по технологии 1 за 2022 год\nЕсли ваша компания занимается производством домокомплектов менее года, приведите расчетный показатель за год исходя из данных за период производства"]
[null,"4.1","Объём продаж домокомплектов по технологии 1:"]
[null,null,"в шт.",null,"Указывается значение количества проданных домокомплектов за год / квартал по технологии 1."]
[null,null,"в м²",null,"Указывается значение общей площади проданных домокомплектов за год / квартал по технологии 1."]
[null,null,"в млн руб.",null,"Указывается значение общей суммы проданных домокомплектов по рыночной цене за год / квартал по технологии 1."]
[null,"4.2","Каналы продаж домокомплектов по технологии 1:",null,"Проставляется отметка ☑ для одного или нескольких значений."]
[null,null,"прямой договор между производителем и заказчиком"]
[null,null,"дистрибьютор"]
[null,null,"дилерская сеть"]
[null,null,"Другое",null,"Просьба расшифровать."]
[null,"4.3","Варианты сборки домокомплекта по технологии 1:",null,"Проставляется отметка ☑ для одного или нескольких значений."]
[null,null,"сборка специалистами вашей компании"]
[null,null,"сборка аккредитованным подрядчиком"]
[null,null,"сборка неаккредитованным подрядчиком"]
[null,null,"самостоятельная сборка клиентом"]
[null,"4.4","Распределение вариантов сборки домокомплектов по долям по технологии 1, %:",null,"Если в п. 4.3 указано больше 1 ответа, то укажите распределение вариантов сборки домокомплектов по долям от общего объёма продаж в шт. за год / квартал по технологии 1.",{"$f":"\"Раскрывается, если в п. \"&B103&\" отмечено более 1 варианта ответа\"","v":"Раскрывается, если в п. 4.3 отмечено более 1 варианта ответа"}]
[null,null,"сборка специалистами вашей компании, %",null,null,{"$f":"\"Раскрывается, если в п. \"&$B$103&\" выбрано «\"&C104&\"»\"","v":"Раскрывается, если в п. 4.3 выбрано «сборка специалистами вашей компании»"}]
[null,null,"сборка аккредитованным подрядчиком, %",null,null,{"$f":"\"Раскрывается, если в п. \"&$B$103&\" выбрано «\"&C105&\"»\"","v":"Раскрывается, если в п. 4.3 выбрано «сборка аккредитованным подрядчиком»"}]
[null,null,"сборка неаккредитованным подрядчиком, %",null,null,"Раскрывается, если в п. 4.3 выбрано «сборка неаккредитованным подрядчиком»"]
[null,null,"самостоятельная сборка клиентом, %",null,null,"Раскрывается, если в п. 4.3 выбрано «самостоятельная сборка клиентом»"]
[null,"4.5","Типы заключаемых с клиентами договоров по технологии 1 в 2022 году:",null,"Проставляется отметка ☑ для одного или нескольких значений."]
[null,null,"договор купли-продажи домокомплекта"]
[null,null,"договор подряда на строительство дома из домокомплекта"]
[null,"4.6","Какие из перечисленных компонентов могут быть включены в договор купли-продажи по технологии 1:",null,"Проставляется отметка ☑ для одного или нескольких значений.",{"$f":"\"Раскрывается, если в п. \"&$B$113&\" выбрано «\"&$C$114&\"»\"","v":"Раскрывается, если в п. 4.5 выбрано «договор купли-продажи домокомплекта»"}]
[null,null,"каркас",null,null,{"$f":"\"Раскрывается, если в п. \"&$B$113&\" выбрано «\"&$C$114&\"»\"","v":"Раскрывается, если в п. 4.5 выбрано «договор купли-продажи домокомплекта»"}]
[null,null,"стены и фасад",null,null,"Раскрывается, если в п. 4.5 выбрано «договор купли-продажи домокомплекта»"]
[null,null,"межкомнатные перекрытия",null,null,"Раскрывается, если в п. 4.5 выбрано «договор купли-продажи домокомплекта»"]
[null,null,"крыша",null,null,"Раскрывается, если в п. 4.5 выбрано «договор купли-продажи домокомплекта»"]
[null,null,"окна и двери",null,null,"Раскрывается, если в п. 4.5 выбрано «договор купли-продажи домокомплекта»"]
[null,null,"фундамент",null,null,"Раскрывается, если в п. 4.5 выбрано «договор купли-продажи домокомплекта»"]
[null,null,"дом с тёплым контуром",null,null,"Раскрывается, если в п. 4.5 выбрано «договор купли-продажи домокомплекта»"]
[null,null,"дом с чистовой отделкой",null,null,"Раскрывается, если в п. 4.5 выбрано «договор купли-продажи домокомплекта»"]
[null,null,"дом с отделкой под ключ",null,null,"Раскрывается, если в п. 4.5 выбрано «договор купли-продажи домокомплекта»"]
[null,"4.7","Какие работы могут быть включены в договор подряда по технологии 1:",null,"Проставляется отметка ☑ для одного или нескольких значений.",{"$f":"\"Раскрывается, если в п. \"&$B$113&\" выбрано «\"&$C$115&\"»\"","v":"Раскрывается, если в п. 4.5 выбрано «договор подряда на строительство дома из домокомплекта»"}]
[null,null,"сборка каркаса",null,null,{"$f":"\"Раскрывается, если в п. \"&$B$113&\" выбрано «\"&$C$115&\"»\"","v":"Раскрывается, если в п. 4.5 выбрано «договор подряда на строительство дома из домокомплекта»"}]
[null,null,"установка крыши",null,null,"Раскрывается, если в п. 4.5 выбрано «договор подряда на строительство дома из домокомплекта»"]
[null,null,"установка окон и дверей",null,null,"Раскрывается, если в п. 4.5 выбрано «договор подряда на строительство дома из домокомплекта»"]
[null,null,"постройка фундамента",null,null,"Раскрывается, если в п. 4.5 выбрано «договор подряда на строительство дома из домокомплекта»"]
[null,null,"обеспечение дома инженерными системами",null,null,"Раскрывается, если в п. 4.5 выбрано «договор подряда на строительство дома из домокомплекта»"]
[null,null,"обеспечение дома тёплым контуром",null,null,"Раскрывается, если в п. 4.5 выбрано «договор подряда на строительство дома из домокомплекта»"]
[null,null,"чистовая отделка дома",null,null,"Раскрывается, если в п. 4.5 выбрано «договор подряда на строительство дома из домокомплекта»"]
[null,null,"отделка дома под ключ",null,null,"Раскрывается, если в п. 4.5 выбрано «договор подряда на строительство дома из домокомплекта»"]
[null,"4.8","Доля реализации домокомплектов по типовому проекту / по типовому проекту с минимальными изменениями / по индивидуальному проекту по технологии 1 в 2022 году, %:"]
[null,null,"по типовому проекту (без изменений в проекте), %",null,"Указывается доля реализованных домокомплектов по типовому проекту в общем объёме реализации в шт. за год / квартал по технологии 1."]
[null,null,"по типовому проекту с минимальными изменениями (изменения проекта повлекли изменение цены не более чем на 10%), %",null,"Указывается доля реализованных домокомплектов, изменения в проект которых привели к изменению цены не более чем на 10%, в общем объёме реализации в шт. за год / квартал по технологии 1."]
[null,null,"по индивидуальному проекту (изменения проекта повлекли изменение цены более чем на 10%), %",null,"Указывается доля реализованных домокомплектов, изменения в проект которых привели к изменению цены более чем на 10%, в общем объёме реализации в шт. за год / квартал по технологии 1."]
[null,"4.9","Средняя стоимость доставки домокомплекта в пересчете на 1 км по технологии 1, руб./км ",null,"Указывается значение средней стоимости доставки домокомплектов, проданных за год, в пересчете на 1 км по технологии 1."]
[null,"4.10","Регионы продажи домокомплектов, и соответствующая им доля в общем объёме реализации в % по технологии 1",null,"Указываются все регионы, в которые были проданы домокомплекты за год / квартал по технологии 1, и их доля в общем объёме продаж по технологии 1 соответствующего периода, которая приходится на эти регионы."]
[null,"4.11","В случае, если Вы проводите оценку потенциального спроса на домокомплекты в регионах присутствия, укажите значение спроса в регионах присутствия в год, шт.",null,"Указывается оценка потенциального спроса на домокомплекты в регионах присутствия в шт. в год, в случае, если такая оценка производится."]
[null,"4.12","Планируете ли Вы расширение / увеличение регионов продаж домокомплектов в 2023 году по технологии 1:",null,"Проставляется отметка ◉ для одного из значений."]
[null,null,"да"]
[null,null,"нет"]
[null,"4.13","Доля продаж домокомплектов с тёплым контуром / с чистовой отделкой / под ключ по технологии 1, %:"]
[null,null,"с холодным контуром, %",null,"Указывается доля количества заключенных договоров продажи домокомплектов с холодным контуром от общего объёма продаж компании в шт. за год / квартал по технологии 1."]
[null,null,"с тёплым контуром, %",null,"Указывается доля количества заключенных договоров продажи домокомплектов с тёплым контуром от общего объёма продаж компании в шт. за год / квартал по технологии 1."]
[null,null,"чистовой отделкой, %",null,"Указывается доля количества заключенных договоров продажи домокомплектов с чистовой отделкой от общего объёма продаж компании в шт. за год / квартал по технологии 1."]
[null,null,"отделкой под ключ, %",null,"Указывается доля количества заключенных договоров продажи домокомплектов отделкой под ключ от общего объёма продаж компании в шт. за год / квартал по технологии 1."]
[null,"4.14","Средняя стоимость реализованных домокомплектов с тёплым контуром / с чистовой отделкой / под ключ, млн руб. по технологии 1 в 2022 году:"]
[null,null,"с холодным контуром, млн руб.",null,"Указывается значение средней стоимости проданных за год домокомплектов без отделки, инженерного оборудования и утепления в млн руб. за год / квартал по технологии 1."]
[null,null,"с тёплым контуром, млн руб.",null,"Указывается значение средней стоимости проданных за год домокомплектов без отделки и инженерного оборудования в млн руб. за год / квартал по технологии 1."]
[null,null,"чистовой отделкой, млн руб.",null,"Указывается значение средней стоимости проданных за год домокомплектов с чистовой отделкой и инженерным оборудованием в млн руб. за год / квартал по технологии 1."]
[null,null,"отделкой под ключ, включая инженерные сети, млн руб.",null,"Указывается значение средней стоимости проданных за год домокомплектов с отделкой под ключ и инженерным оборудованием в млн руб. за год / квартал по технологии 1."]
[null,"4.15","Доля продаж с привлечением ипотечного кредита по технологии 1, %",null,"Указывается значение отношения количества заключенных договоров, оплата которых производится с привлечением кредитных средств, к общему количеству заключенных договоров за год / квартал по технологии 1."]
[null,"4.16","Применение льготных ипотечных программ по технологии 1:",null,"Проставляется отметка ☑ для одного или нескольких значений.\nУказываются льготные ипотечные программы, которые используют покупатели домокомплектов по технологии 1."]
[null,null,"льготная ипотека"]
[null,null,"семейная ипотека"]
[null,null,"сельская ипотека"]
[null,null,"ИТ-ипотека"]
[null,null,"дальневосточная ипотека"]
[null,"4.17","Распределение доли льготных ипотечных программ по технологии 1, %:",null,null,{"$f":"\"Раскрывается, если в п. \"&$B$156&\" выбран по крайней мере 1 вариант ответа\"","v":"Раскрывается, если в п. 4.16 выбран по крайней мере 1 вариант ответа"}]
[null,null,"льготная ипотека, %",null,"Указывается значение отношения количества заключенных договоров с применением программы льготной ипотеки к общему количеству заключенных договоров за год / квартал по технологии 1.",{"$f":"\"Раскрывается, если в п. \"&$B$156&\" выбрано «\"&C157&\"»\"","v":"Раскрывается, если в п. 4.16 выбрано «льготная ипотека»"}]
[null,null,"семейная ипотека, %",null,"Указывается значение отношения количества заключенных договоров с применением программы семейной ипотеки к общему количеству заключенных договоров за год / квартал по технологии 1.",{"$f":"\"Раскрывается, если в п. \"&$B$156&\" выбрано «\"&C158&\"»\"","v":"Раскрывается, если в п. 4.16 выбрано «семейная ипотека»"}]
[null,null,"сельская ипотека, %",null,"Указывается значение отношения количества заключенных договоров с применением программы сельской ипотеки к общему количеству заключенных договоров за год / квартал по технологии 1.","Раскрывается, если в п. 4.16 выбрано «сельская ипотека»"]
[null,null,"ИТ-ипотека, %",null,"Указывается значение отношения количества заключенных договоров с применением программы ИТ-ипотеки к общему количеству заключенных договоров за год / квартал по технологии 1.","Раскрывается, если в п. 4.16 выбрано «ИТ-ипотека»"]
[null,null,"дальневосточная ипотека, %",null,"Указывается значение отношения количества заключенных договоров с применением программы дальневосточной ипотеки к общему количеству заключенных договоров за год / квартал. по технологии 1","Раскрывается, если в п. 4.16 выбрано «дальневосточная ипотека»"]
[null,"4.18","Банки-партнёры по ипотечному кредитованию при реализации домокомплектов по технологии 1",null,"Указываются все банки-партнёры по ипотечному кредитованию при реализации домокомплектов по технологии 1."]
[null,"4.19","Распределение доли продаж домокомплектов, реализованных по договору купли-продажи, по ценовым сегментам по технологии 1, %:",null,null,{"$f":"\"Раскрывается, если в п. \"&$B$113&\" выбрано «\"&$C$114&\"»\"","v":"Раскрывается, если в п. 4.5 выбрано «договор купли-продажи домокомплекта»"}]
[null,null,"стоимостью менее 3,5 млн руб., %",null,"Указывается доля продаж домокомплектов, реализованных по договору купли-продажи, стоимостью менее 3,5 млн руб. от общего количества продаж домокомплектов в шт. за год / квартал по технологии 1.","Раскрывается, если в п. 4.5 выбрано «договор купли-продажи домокомплекта»"]
[null,null,"стоимостью от 3,5 млн руб. до 7 млн руб., %",null,"Указывается доля продаж домокомплектов, реализованных по договору купли-продажи, стоимостью от 3,5 млн руб. до 7 млн руб. от общего количества продаж домокомплектов в шт. за год / квартал по технологии 1.","Раскрывается, если в п. 4.5 выбрано «договор купли-продажи домокомплекта»"]
[null,null,"стоимостью более 7 млн руб., %",null,"Указывается доля продаж домокомплектов, реализованных по договору купли-продажи, стоимостью более 7 млн руб. от общего количества продаж домокомплектов в шт. за год / квартал по технологии 1.",{"$f":"\"Раскрывается, если в п. \"&$B$113&\" выбрано «\"&$C$114&\"»\"","v":"Раскрывается, если в п. 4.5 выбрано «договор купли-продажи домокомплекта»"}]
[null,"4.20","Распределение доли продаж домокомплектов, реализованных по договору подряда, по ценовым сегментам по технологии 1, %:",null,null,{"$f":"\"Раскрывается, если в п. \"&$B$113&\" выбрано «\"&$C$115&\"»\"","v":"Раскрывается, если в п. 4.5 выбрано «договор подряда на строительство дома из домокомплекта»"}]
[null,null,"стоимостью менее 3,5 млн руб., %",null,"Указывается доля продаж домокомплектов, реализованных по договору подряда, стоимостью менее 3,5 млн руб. от общего количества продаж домокомплектов в шт. за год / квартал по технологии 1.",{"$f":"\"Раскрывается, если в п. \"&$B$113&\" выбрано «\"&$C$115&\"»\"","v":"Раскрывается, если в п. 4.5 выбрано «договор подряда на строительство дома из домокомплекта»"}]
[null,null,"стоимостью от 3,5 млн руб. до 7 млн руб., %",null,"Указывается доля продаж домокомплектов, реализованных по договору подряда, стоимостью от 3,5 млн руб. до 7 млн руб. от общего количества продаж домокомплектов в шт. за год / квартал по технологии 1.","Раскрывается, если в п. 4.5 выбрано «договор подряда на строительство дома из домокомплекта»"]
[null,null,"стоимостью более 7 млн руб., %",null,"Указывается доля продаж домокомплектов, реализованных по договору подряда, стоимостью более 7 млн руб. от общего количества продаж домокомплектов в шт. за год / квартал по технологии 1.","Раскрывается, если в п. 4.5 выбрано «договор подряда на строительство дома из домокомплекта»"]
[null,"4.21","Являетесь ли Вы участником программы Минпромторга на получение субсидии для компенсации 10%-скидки:",null,"Проставляется отметка ◉ для одного из значений. Ссылка на постановление Правительства РФ о предоставлении субсидии: http://government.ru/docs/all/144380/"]
[null,null,"да"]
[null,null,"нет"]
[null,"4.22","Доля продаж домокомплектов с применением скидки от Минпромторга по технологии 1, %",null,"Указывается доля объёма продаж домокомплектов с учетом программы Минпромторга от общего объёма продаж компании за год / квартал по технологии 1.",{"$f":"\"Раскрывается, если в п. \"&B177&\" выбрано «да»\"","v":"Раскрывается, если в п. 4.21 выбрано «да»"}]
[null,"4.23","В случае, если Ваша компания выполняет сборку домокомплектов своими силами, укажите себестоимость работ по монтажу домокомплекта по технологии 1 в пересчёте на 1 м², руб./м²",null,"Указывается значение средней стоимости сборки домокомплектов по технологии 1, проданных за год, в пересчете на 1 м², в случае, если Ваша компания выполняет сборку домокомплектов своими силами."]
[null,"Раздел 5. Технология 1. Типовые домокомплекты - ТОП-3 по количеству продаж в шт. за год / квартал по технологии 1\nПросим вас оценить характеристики типовых проектов домокомплектов по технологии 1 за 2022 год\nЕсли ваша компания занимается производством домокомплектов менее года, приведите расчетный показатель за год исходя из данных за период производства"]
[null,"5.1","ТОП-1"]
[null,"5.1.1","Домокомплект, который занимает Топ-1 в структуре продаж по технологии 1",null,"Указывается ID / Номенклатурный номер / ссылка на проект домокомплекта, который занимает Топ-1 структуре продаж за год / квартал по технологии 1."]
[null,"5.1.2","Доля продаж домокомплекта в общей выручке компании, %",null,"Указывается доля продаж домокомплекта в общей выручке компании за год / квартал."]
[null,"5.1.3","Цена домокомплекта, млн руб.",null,"Указывается цена домокомплекта в млн руб."]
[null,"5.1.4","Площадь домокомплекта, м²",null,"Указывается площадь домокомплекта в м²."]
[null,"5.1.5","Этажность домокомплекта, шт.",null,"Указывается количество этажей в домокомплекте в шт."]
[null,"5.1.6","Количество комнат в домокомплекте, шт.",null,"Указывается количество комнат в домокомплекте в шт."]
[null,"5.1.7","Наличие отделки домокомплекта ",null,"Проставляется отметка ☑ для одного или нескольких значений."]
[null,null,"холодный контур"]
[null,null,"тёплый контур"]
[null,null,"чистовая отделка"]
[null,null,"отделка под ключ"]
[null,"5.2","ТОП-2"]
[null,"5.2.1","Домокомплект, который занимает Топ-1 в структуре продаж по технологии 1",null,"Указывается ID / Номенклатурный номер / ссылка на проект домокомплекта, который занимает Топ-1 структуре продаж за год / квартал по технологии 1."]
[null,"5.2.2","Доля продаж домокомплекта в общей выручке компании, %",null,"Указывается доля продаж домокомплекта в общей выручке компании за год / квартал."]
[null,"5.2.3","Цена домокомплекта, млн руб.",null,"Указывается цена домокомплекта в млн руб."]
[null,"5.2.4","Площадь домокомплекта, м²",null,"Указывается площадь домокомплекта в м²."]
[null,"5.2.5","Этажность домокомплекта, шт.",null,"Указывается количество этажей в домокомплекте в шт."]
[null,"5.2.6","Количество комнат в домокомплекте, шт.",null,"Указывается количество комнат в домокомплекте в шт."]
[null,"5.2.7","Наличие отделки домокомплекта ",null,"Проставляется отметка ☑ для одного или нескольких значений."]
[null,null,"холодный контур"]
[null,null,"тёплый контур"]
[null,null,"чистовая отделка"]
[null,null,"отделка под ключ"]
[null,"5.3","ТОП-3"]
[null,"5.3.1","Домокомплект, который занимает Топ-1 в структуре продаж по технологии 1",null,"Указывается ID / Номенклатурный номер / ссылка на проект домокомплекта, который занимает Топ-1 структуре продаж за год / квартал по технологии 1."]
[null,"5.3.2","Доля продаж домокомплекта в общей выручке компании, %",null,"Указывается доля продаж домокомплекта в общей выручке компании за год / квартал."]
[null,"5.3.3","Цена домокомплекта, млн руб.",null,"Указывается цена домокомплекта в млн руб."]
[null,"5.3.4","Площадь домокомплекта, м²",null,"Указывается площадь домокомплекта в м²."]
[null,"5.3.5","Этажность домокомплекта, шт.",null,"Указывается количество этажей в домокомплекте в шт."]
[null,"5.3.6","Количество комнат в домокомплекте, шт.",null,"Указывается количество комнат в домокомплекте в шт."]
[null,"5.3.7","Наличие отделки домокомплекта ",null,"Проставляется отметка ☑ для одного или нескольких значений."]
[null,null,"холодный контур"]
[null,null,"тёплый контур"]
[null,null,"чистовая отделка"]
[null,null,"отделка под ключ"]
[null,"Раздел 6. Профиль покупателя\nПросим вас оценить профиль покупателя домокомплектов по технологии 1 за 2022 год\nЕсли ваша компания занимается производством домокомплектов менее года, приведите расчетный показатель за год исходя из данных за период производства"]
[null,"6.1","Кто является Вашими клиентами:",null,"Проставляется отметка ☑ для одного или нескольких значений."]
[null,null,"физические лица"]
[null,null,"юридические лица"]
[null,"6.2","Доля физ. лиц по типам в общем количестве покупателей - физ. лиц, %:",null,null,{"$f":"\"Раскрывается, если в п. \"&$B$220&\" выбрано «\"&$C$221&\"»\"","v":"Раскрывается, если в п. 6.1 выбрано «физические лица»"}]
[null,null,"семья с детьми, %",null,"Указывается значение доли заключенных договоров с семьями с детьми в общем кол-ве договоров с физ. лицами за год / квартал.",{"$f":"\"Раскрывается, если в п. \"&$B$220&\" выбрано «\"&$C$221&\"»\"","v":"Раскрывается, если в п. 6.1 выбрано «физические лица»"}]
[null,null,"семья без детей, %",null,"Указывается значение доли заключенных договоров с семьями без детей в общем кол-ве договоров с физ. лицами за год / квартал.","Раскрывается, если в п. 6.1 выбрано «физические лица»"]
[null,null,"женщина не замужем, %",null,"Указывается значение доли заключенных договоров с не замужними женщинами в общем кол-ве договоров с физ. лицами за год / квартал.","Раскрывается, если в п. 6.1 выбрано «физические лица»"]
[null,null,"мужчина холостой, %",null,"Указывается значение доли заключенных договоров с холостыми мужчинами в общем кол-ве договоров с физ. лицами за год / квартал.","Раскрывается, если в п. 6.1 выбрано «физические лица»"]
[null,"6.3","Доля юр. лиц по типам в общем количестве покупателей - юр. лиц, %:",null,null,{"$f":"\"Раскрывается, если в п. \"&$B$220&\" выбрано «\"&$C$222&\"»\"","v":"Раскрывается, если в п. 6.1 выбрано «юридические лица»"}]
[null,null,"дилерские и дистрибьюторские компании, %",null,"Указывается значение доли заключенных договоров с дилерскими и дистрибьюторскими компаниями в общем кол-ве договоров с юр. лицами за год / квартал.",{"$f":"\"Раскрывается, если в п. \"&$B$220&\" выбрано «\"&$C$222&\"»\"","v":"Раскрывается, если в п. 6.1 выбрано «юридические лица»"}]
[null,null,"аккредитованные Вашей компанией подрядчики, %",null,"Указывается значение доли заключенных договоров с аккредитованными Вашей компанией подрядчиками в общем кол-ве договоров с юр. лицами за год / квартал.","Раскрывается, если в п. 6.1 выбрано «юридические лица»"]
[null,null,"застройщики для осуществления комплексного строительства ИЖС, %",null,"Указывается значение доли заключенных договоров с застройщиками для осуществления комплексного строительства ИЖС в общем кол-ве договоров с юр. лицами за год / квартал.","Раскрывается, если в п. 6.1 выбрано «юридические лица»"]
[null,null,"прямые покупатели - юр. лица для их собственных нужд, %",null,"Указывается значение доли заключенных договоров с прямыми покупателями - юр. лицами для их собственных нужд в общем кол-ве договоров с юр. лицами за год / квартал.","Раскрывается, если в п. 6.1 выбрано «юридические лица»"]
[null,"6.4","Доля выручки, полученная от юр. лиц, %",null,"Указывается значение доли доходов от заключенных договоров с юр. лицами в выручке компании за год / квартал",{"$f":"\"Раскрывается, если в п. \"&$B$220&\" выбрано одновременно «\"&$C$221&\"» и «\"&$C$222&\"»\"","v":"Раскрывается, если в п. 6.1 выбрано одновременно «физические лица» и «юридические лица»"}]
[null,"6.5","Конверсия продаж, %",null,"Укажите значение показателя, рассчитанного по следующей формуле: \nЗаключенный договор реализации домокомплекта, ед. за год, квартал/ Общее число обращений в компанию или заявок на сайте на поставку домокомплекта, ед. за год, квартал."]
[null,"6.6","Причины, по которым клиент отказывается от приобретения домокомплекта в процессе оформления заказа:",null,"Проставляется отметка ☑ для одного или нескольких значений."]
[null,null,"высокая цена"]
[null,null,"приобретение домокомплекта у другого производителя"]
[null,null,"приобретение квартиры в многоквартирном доме;"]
[null,null,"строительство ИЖС хозспособом (собственными силами)"]
[null,null,"отсутствие возможности приобрести продукт под ключ с отделкой"]
[null,null,"не одобрена ипотека"]
[null,null,"проблемы с земельным участком, в т. ч. отсутствие возможности обеспечить участок инфраструктурой"]
[null,null,"причина неизвестна"]
[null,"Раздел 7. Дополнительная информация"]
[null,"7.1","Предложения по развитию рынка домокомплектов в России",null,"Указываются предложения в свободной форме."]
[null,"7.2","Какие меры поддержки для производителей домокомплектов Вы считаете эффективными:",null,"Проставляется отметка ☑ для одного или нескольких значений."]
[null,null,"льготное кредитование для расширения производственных мощностей"]
[null,null,"лизинг оборудования"]
[null,null,"субсидирование"]
[null,null,"льготные долгосрочные ипотечные программы на ИЖС"]
[null,null,"разработка единых цифровых платформ для производителей, покупателей, банков и органов власти"]
[null,"7.3","Какие каналы связи предпочтительны для информирования Вас о мерах поддержки",null,"Указываются предпочтительные каналы связи."]
[null,"7.4","Являетесь ли Ваша компания зарегистрированным поставщиком и подрядчиком на суперсервисе строим.дом.рф:",null,"Суперсервис строим.дом.рф предлагает поставщикам и подрядчикам сервисы для привлечения клиентов, заинтересованных в строительстве индивидуальных жилых домов. Портал представляет собой маркетплейс для получения заказов и стимулирования спроса и предоставляет интерфейс для цифрового взаимодействия с заказчиками и банками"]
[null,null,"да"]
[null,null,"нет"]
[null,"7.5","Хотели бы Вы получать информационную рассылку от ДОМ.РФ об основных законодательных изменениях, реализуемых мерах поддержки в сегменте ИЖС:",null,"Предполагается осуществление АО \"ДОМ.РФ\" на регулярной основе (не реже 1 раза в месяц) информационной рассылки о законодательных изменениях, об условиях новых программ и механизмов поддержки ИЖС, о статусе реализации основных программ и механизмов поддержки ИЖС, ключевые новости рынка ИЖС."]
[null,null,"да"]
[null,null,"нет"]
[null,"7.6","Готовы ли Вы предоставлять информацию о результатах деятельности Вашей компании с целью публикации в обезличенном формате (общие данные по рынку) не реже 1 раза в квартал",null,"Предполагается публикация в открытых источниках / включение в информационную рассылку, указанную в п. 7.5, количественных данных о результатах деятельности компаний (в целом по рынку, без указания конкретных компаний): количество построенных домов по различным технологиям, количество произведенных домокомплектов и т. д."]
[null,null,"да"]
[null,null,"нет"]
[null,"7.7","Хотели бы Вы принимать участие в мероприятиях, проводимых ДОМ.РФ (вебинары, стратсессии и т.д.), направленных на продвижение механизмов поддержки ИЖС",null,"Предполагается организация АО \"ДОМ.РФ\" на регулярной основе (не реже 1 раза в 2 месяца) просветительских мероприятий, направленных на популяризацию механизмов поддержки ИЖС, разъяснение условий соответствующих программ и норм законодательства, обмен опытом участников рынка ИЖС."]
[null,null,"да"]
[null,null,"нет"]
[null,"7.8","Готовы ли Вы войти в состав рабочей группы с целью разработки мер поддержки ИЖС",null,"Предполагается создание рабочей группы с привлечением представителей организаций (профессиональных участников рынка ИЖС) к разработке механизмов поддержки ИЖС."]
[null,null,"да"]
[null,null,"нет"]
[null,"Для заполнения анкеты по второй технологии производства, пожалуйста, перейдите на лист \"Технология 2\"."]

{"sheet":"Технология 2","index":1,"n_rows":184,"n_cols":7,"rows_kept":184,"cut":false,"hidden":false,"merged":[[183,1,183,5],[166,1,170,1],[167,3,167,4],[168,3,168,4],[169,3,169,4],[170,3,170,4],[178,1,182,1],[179,3,179,4],[180,3,180,4],[181,3,181,4],[182,3,182,4],[146,1,146,5],[154,1,158,1],[155,3,155,4],[156,3,156,4],[157,3,157,4],[158,3,158,4],[126,1,131,1],[133,1,136,1],[137,1,140,1],[141,1,143,1],[142,3,142,4],[143,3,143,4],[132,3,132,4],[120,1,125,1],[121,3,121,4],[122,3,122,4],[123,3,123,4],[124,3,124,4],[125,3,125,4],[97,3,97,4],[98,3,98,4],[99,1,102,1],[103,3,103,4],[106,1,108,1],[107,3,107,4],[108,3,108,4],[90,1,98,1],[91,3,91,4],[92,3,92,4],[93,3,93,4],[94,3,94,4],[95,3,95,4],[96,3,96,4],[109,1,113,1],[114,1,118,1],[77,1,79,1],[78,3,78,4],[79,3,79,4],[80,1,89,1],[81,3,81,4],[82,3,82,4],[83,3,83,4],[84,3,84,4],[85,3,85,4],[86,3,86,4],[87,3,87,4],[88,3,88,4],[89,3,89,4],[67,1,71,1],[68,3,68,4],[69,3,69,4],[70,3,70,4],[71,3,71,4],[72,1,76,1],[57,1,57,5],[58,1,61,1],[62,1,66,1],[63,3,63,4],[64,3,64,4],[65,3,65,4],[66,3,66,4],[50,3,50,4],[51,1,53,1],[52,3,52,4],[53,3,53,4],[54,1,56,1],[55,3,55,4],[56,3,56,4],[46,1,48,1],[47,3,47,4],[48,3,48,4],[49,3,49,4],[43,3,43,4],[44,3,44,4],[45,3,45,4],[34,1,36,1],[35,3,35,4],[36,3,36,4],[37,1,39,1],[38,3,38,4],[39,3,39,4],[40,1,44,1],[41,3,41,4],[42,3,42,4],[27,3,27,4],[28,3,28,4],[29,3,29,4],[30,3,30,4],[31,1,33,1],[32,3,32,4],[33,3,33,4],[14,1,16,1],[18,3,18,4],[19,3,19,4],[20,3,20,4],[21,1,30,1],[22,3,22,4],[23,3,23,4],[24,3,24,4],[25,3,25,4],[26,3,26,4],[1,1,1,5],[2,1,2,5],[5,3,5,4],[4,1,4,5],[6,1,9,1],[10,1,13,1],[11,3,11,4],[12,3,12,4],[13,3,13,4],[7,3,7,4],[8,3,8,4],[9,3,9,4]]}
[]
[null,"Анкета для опроса компаний производителей домокомплектов\nТехнология 2"]
[null,"Анкета заполняется для каждой технологии производства отдельно.\nДля заполнения анкеты по третьей технологии производства, пожалуйста, перейдите на лист \"Технология 3\"."]
[null,"№ п/п","Наименование параметра","Период - 2022 г.","Период - 1 кв. 2023 г.","Комментарий","Техническая информация"]
[null,"Раздел 1. Технология 2. Производство домокомплектов по технологии 2"]
[null,"1.1","Выберете наименование второй технологии производства, если Ваша компания использует более одной технологии производства",null,null,"Выбирается из выпадающего списка название технологии производства в случае наличия у компании нескольких производств по различным технологиям."]
[null,"1.2","Текущий объём производства домокомплектов по технологии 2:"]
[null,null,"в шт.",null,null,"Указывается значение количества производимых домокомплектов за год / квартал по технологии 2."]
[null,null,"в м²",null,null,"Указывается значение общей площади производимых домокомплектов за год / квартал по технологии 2."]
[null,null,"в млн руб.",null,null,"Указывается значение общей суммы производимых домокомплектов по рыночной цене за год / квартал по технологии 2."]
[null,"1.3","Прогнозный объём производства домокомплектов в 2023 году по технологии 2:"]
[null,null,"в шт.",null,null,"Указывается значение количества производимых домокомплектов на прогнозный 2023 год по технологии 2."]
[null,null,"в м²",null,null,"Указывается значение общей площади производимых домокомплектов на прогнозный 2023 год по технологии 2."]
[null,null,"в млн руб.",null,null,"Указывается значение общей суммы производимых домокомплектов по рыночной цене на прогнозный 2023 год по технологии 2."]
[null,"1.4","Максимальный объём производственных мощностей без переоборудования и модернизации по технологии 2:"]
[null,null,"в шт.",null,null,"Указывается возможное значение количества производимых домокомплектов при условии максимальной возможной загрузки производственных мощностей (без переоборудования и модернизации) в пересчёте на год по технологии 2."]
[null,null,"в м²",null,null,"Указывается возможное значение общей площади производимых домокомплектов при условии максимальной возможной загрузки производственных мощностей (без переоборудования и модернизации) в пересчёте на год по технологии 2."]
[null,"1.5","Средняя себестоимость производства домокомплектов по технологии 2, млн руб.",null,null,"Указывается значение средней себестоимости производства домокомплектов по технологии 2 в млн руб. за год / квартал"]
[null,"1.6","Доля деталей сборной конструкции, произведённых заводским  способом (с использованием станков и оборудования) по технологии 2, %",null,null,"Указывается значение доли деталей сборной конструкции, которые производятся заводским способом (с использованием станков и оборудования) по технологии 2."]
[null,"1.7","Среднее время, необходимое для производства домокомплекта по технологии 2, дней",null,null,"Указывается значение среднего времени производства домокомплекта без учета доработок проекта (только производственный цикл) в днях по технологии 2."]
[null,"1.8","Средний срок сборки домокомплекта по технологии 2, дней",null,null,"Указывается значение среднего времени в днях, необходимого для сборки домокомплекта по технологии 2, без учета доработок проекта."]
[null,"1.9","Основные факторы, ограничивающие потенциальный рост объёмов производства по технологии 2:",null,null,"Проставляется отметка ☑ для одного или нескольких значений (указываются все факторы, актуальные в настоящее время)."]
[null,null,"дефицит или высокая стоимость материалов"]
[null,null,"отсутствие комплектующих к иностранному оборудованию"]
[null,null,"нехватка помещений для производства"]
[null,null,"нехватка рабочей силы"]
[null,null,"отсутствие стабильного спроса на продукцию"]
[null,null,"отсутствие возможности получения льготного кредитования для инвестиций в расширение производственных площадей, замену или модернизацию оборудования и т. д."]
[null,null,"отсутствие возможности получения кредитования для увеличения оборотного капитала"]
[null,null,"отсутствие или нехватка мер государственной поддержки"]
[null,null,"иное",null,null,"Просьба расшифровать."]
[null,"1.10","Есть ли у Вас планы по увеличению объёма производства по технологии 2, предполагающие инвестиции в расширение производственных площадей, замену или модернизацию оборудования и т. д.:",null,null,"Проставляется отметка ◉ для одного из значений."]
[null,null,"да"]
[null,null,"нет"]
[null,"1.11","Готовы ли Вы пересмотреть планы по увеличению объёма производства, в случае, если государством будут разработаны программы льготного кредитования для этих целей:",null,null,"Проставляется отметка ◉ для одного из значений.",{"$f":"\"Раскрывается, если в п. \"&$B$32&\" выбрано «нет»\"","v":"Раскрывается, если в п. 1.10 выбрано «нет»"}]
[null,null,"да",null,null,null,{"$f":"\"Раскрывается, если в п. \"&$B$32&\" выбрано «нет»\"","v":"Раскрывается, если в п. 1.10 выбрано «нет»"}]
[null,null,"нет",null,null,null,"Раскрывается, если в п. 1.10 выбрано «нет»"]
[null,"1.12","На сколько планируется увеличить объём производства по отношению к текущему объёму производства по технологии 2:",null,null,null,{"$f":"\"Раскрывается, если в п. \"&$B$32&\" выбрано «да»\"","v":"Раскрывается, если в п. 1.10 выбрано «да»"}]
[null,null,"в шт.",null,null,"Указывается потенциальный прирост общей площади производимых домокомплектов по технологии 2 в пересчете на год по отношению к текущему объёму производства за год при реализации планов по расширению производственных площадей.",{"$f":"\"Раскрывается, если в п. \"&$B$32&\" выбрано «да»\"","v":"Раскрывается, если в п. 1.10 выбрано «да»"}]
[null,null,"в м²",null,null,"Указывается потенциальный прирост количества производимых домокомплектов по технологии 2 в пересчете на год по отношению к текущему объёму производства за год при реализации планов по расширению производственных площадей.","Раскрывается, если в п. 1.10 выбрано «да»"]
[null,"1.13","Из каких источников финансирования планируется реализовать указанные планы по увеличению объёма производства:",null,null,"Проставляется отметка ☑ для одного или нескольких значений источников финансирования для целей, указанных в п. 1.10.","Раскрывается, если в п. 1.10 выбрано «да»"]
[null,null,"собственные средства",null,null,null,"Раскрывается, если в п. 1.10 выбрано «да»"]
[null,null,"кредитные средства",null,null,null,"Раскрывается, если в п. 1.10 выбрано «да»"]
[null,null,"субсидии",null,null,null,"Раскрывается, если в п. 1.10 выбрано «да»"]
[null,null,"иное",null,null,"Просьба расшифровать.","Раскрывается, если в п. 1.10 выбрано «да»"]
[null,"1.14","Какой объём кредитных средств требуется для реализации планов по увеличению объёма производства, млн руб.",null,null,"Указывается приблизительная оценка объёма кредитных средств, которые компания планирует привлечь на цели, указанные в п. 1.10.",{"$f":"\"Раскрывается, если в п. \"&$B$41&\" выбрано «кредитные средства»\"","v":"Раскрывается, если в п. 1.13 выбрано «кредитные средства»"}]
[null,"1.15","Возникает ли у Вас потребность в привлечении кредитных средств для увеличения оборотного капитала:",null,null,"Проставляется отметка ◉ для одного из значений."]
[null,null,"да"]
[null,null,"нет"]
[null,"1.16","Банки-партнёры по привлечению кредитных средств для инвестиций в увеличение объёма производства по технологии 2",null,null,"Указываются все банки-партнёры по привлечению кредитных средств для инвестиций в увеличение объёма производства по технологии 2."]
[null,"1.17","Доля оборудования иностранного производства, используемого в изготовлении домокомплектов по технологии 2",null,null,"Указывается оценка доли использования в производстве домокомплектов по технологии 2 иностранного оборудования от общего числа оборудования."]
[null,"1.18","Какие проблемы возникают при эксплуатации и содержании оборудования, используемого в производстве по технологии 2:"]
[null,null,"иностранного производства",null,null,"Просьба заполнить информацией о проблемах, возникающих при эксплуатации оборудования иностранного производства.",{"$f":"\"Раскрывается, если в п. \"&$B$51&\" внесено значение больше, чем 0%\"","v":"Раскрывается, если в п. 1.17 внесено значение больше, чем 0%"}]
[null,null,"российского производства",null,null,"Просьба заполнить информацией о проблемах, возникающих при эксплуатации оборудования российского производства.",{"$f":"\"Раскрывается, если в п. \"&$B$51&\" внесено значение больше, чем 100%\"","v":"Раскрывается, если в п. 1.17 внесено значение больше, чем 100%"}]
[null,"1.19","Планируется ли замена иностранного оборудования на российские аналоги:",null,null,"Проставляется отметка ◉ для одного из значений.",{"$f":"\"Раскрывается, если в п. \"&$B$51&\" внесено значение больше, чем 0%\"","v":"Раскрывается, если в п. 1.17 внесено значение больше, чем 0%"}]
[null,null,"да",null,null,null,"Раскрывается, если в п. 1.17 внесено значение больше, чем 0%"]
[null,null,"нет",null,null,null,"Раскрывается, если в п. 1.17 внесено значение больше, чем 0%"]
[null,"Раздел 2. Технология 2. Реализация и структура продаж домокомплектов по технологии 2"]
[null,"2.1","Текущий объём продаж домокомплектов по технологии 2:"]
[null,null,"в шт.",null,null,"Указывается значение количества продаваемых домокомплектов за год / квартал по технологии 2."]
[null,null,"в м²",null,null,"Указывается значение общей площади продаваемых домокомплектов за год / квартал по технологии 2."]
[null,null,"в млн руб.",null,null,"Указывается значение общей суммы продаваемых домокомплектов по рыночной цене за год / квартал по технологии 2."]
[null,"2.2","Каналы продаж домокомплектов по технологии 2:",null,null,"Проставляется отметка ☑ для одного или нескольких значений."]
[null,null,"прямой договор между производителем и заказчиком"]
[null,null,"дистрибьютор"]
[null,null,"дилерская сеть"]
[null,null,"Ваш вариант",null,null,"Просьба расшифровать."]
[null,"2.3","Варианты сборки домокомплекта по технологии 2:",null,null,"Проставляется отметка ☑ для одного или нескольких значений."]
[null,null,"собственная сборка"]
[null,null,"сборка аккредитованным подрядчиком"]
[null,null,"сборка неаккредитованным подрядчиком"]
[null,null,"самостоятельная сборка клиентом"]
[null,"2.4","Распределение вариантов сборки домокомплектов по долям по технологии 2, %:",null,null,"Если в п. 2.3 указано больше 1 ответа, то укажите распределение вариантов сборки домокомплектов по долям от общего объёма продаж в шт. за год / квартал по технологии 2.",{"$f":"\"Раскрывается, если в п. \"&$B$68&\" отмечено более 1 варианта ответа\"","v":"Раскрывается, если в п. 2.3 отмечено более 1 варианта ответа"}]
[null,null,"собственная сборка, %",null,null,null,{"$f":"\"Раскрывается, если в п. \"&$B$68&\" выбрано «\"&C69&\"»\"","v":"Раскрывается, если в п. 2.3 выбрано «собственная сборка»"}]
[null,null,"сборка аккредитованным подрядчиком, %",null,null,null,{"$f":"\"Раскрывается, если в п. \"&$B$68&\" выбрано «\"&C70&\"»\"","v":"Раскрывается, если в п. 2.3 выбрано «сборка аккредитованным подрядчиком»"}]
[null,null,"сборка неаккредитованным подрядчиком, %",null,null,null,"Раскрывается, если в п. 2.3 выбрано «сборка неаккредитованным подрядчиком»"]
[null,null,"самостоятельная сборка клиентом, %",null,null,null,"Раскрывается, если в п. 2.3 выбрано «самостоятельная сборка клиентом»"]
[null,"2.5","Типы заключаемых с клиентами договоров по технологии 2:",null,null,"Проставляется отметка ☑ для одного или нескольких значений."]
[null,null,"договор купли-продажи домокомплекта"]
[null,null,"договор подряда на строительство дома из домокомплекта"]
[null,"2.6","Какие из перечисленных компонентов могут быть включены в договор купли-продажи по технологии 2:",null,null,"Проставляется отметка ☑ для одного или нескольких значений.",{"$f":"\"Раскрывается, если в п. \"&$B$78&\" выбрано «\"&$C$79&\"»\"","v":"Раскрывается, если в п. 2.5 выбрано «договор купли-продажи домокомплекта»"}]
[null,null,"каркас",null,null,null,{"$f":"\"Раскрывается, если в п. \"&$B$78&\" выбрано «\"&$C$79&\"»\"","v":"Раскрывается, если в п. 2.5 выбрано «договор купли-продажи домокомплекта»"}]
[null,null,"стены и фасад",null,null,null,"Раскрывается, если в п. 2.5 выбрано «договор купли-продажи домокомплекта»"]
[null,null,"межкомнатные перекрытия",null,null,null,"Раскрывается, если в п. 2.5 выбрано «договор купли-продажи домокомплекта»"]
[null,null,"крыша",null,null,null,"Раскрывается, если в п. 2.5 выбрано «договор купли-продажи домокомплекта»"]
[null,null,"окна и двери",null,null,null,"Раскрывается, если в п. 2.5 выбрано «договор купли-продажи домокомплекта»"]
[null,null,"фундамент",null,null,null,"Раскрывается, если в п. 2.5 выбрано «договор купли-продажи домокомплекта»"]
[null,null,"дом с тёплым контуром",null,null,null,"Раскрывается, если в п. 2.5 выбрано «договор купли-продажи домокомплекта»"]
[null,null,"дом с чистовой отделкой",null,null,null,"Раскрывается, если в п. 2.5 выбрано «договор купли-продажи домокомплекта»"]
[null,null,"дом с отделкой под ключ",null,null,null,"Раскрывается, если в п. 2.5 выбрано «договор купли-продажи домокомплекта»"]
[null,"2.7","Какие работы могут быть включены в договор подряда по технологии 2:",null,null,"Проставляется отметка ☑ для одного или нескольких значений.",{"$f":"\"Раскрывается, если в п. \"&$B$78&\" выбрано «\"&$C$80&\"»\"","v":"Раскрывается, если в п. 2.5 выбрано «договор подряда на строительство дома из домокомплекта»"}]
[null,null,"сборка каркаса",null,null,null,{"$f":"\"Раскрывается, если в п. \"&$B$78&\" выбрано «\"&$C$80&\"»\"","v":"Раскрывается, если в п. 2.5 выбрано «договор подряда на строительство дома из домокомплекта»"}]
[null,null,"установка крыши",null,null,null,"Раскрывается, если в п. 2.5 выбрано «договор подряда на строительство дома из домокомплекта»"]
[null,null,"установка окон и дверей",null,null,null,"Раскрывается, если в п. 2.5 выбрано «договор подряда на строительство дома из домокомплекта»"]
[null,null,"постройка фундамента",null,null,null,"Раскрывается, если в п. 2.5 выбрано «договор подряда на строительство дома из домокомплекта»"]
[null,null,"обеспечение дома инженерными системами",null,null,null,"Раскрывается, если в п. 2.5 выбрано «договор подряда на строительство дома из домокомплекта»"]
[null,null,"обеспечение дома тёплым контуром",null,null,null,"Раскрывается, если в п. 2.5 выбрано «договор подряда на строительство дома из домокомплекта»"]
[null,null,"чистовая отделка дома",null,null,null,"Раскрывается, если в п. 2.5 выбрано «договор подряда на строительство дома из домокомплекта»"]
[null,null,"отделка дома под ключ",null,null,null,"Раскрывается, если в п. 2.5 выбрано «договор подряда на строительство дома из домокомплекта»"]
[null,"2.8","Доля реализации домокомплектов по типовому проекту / по типовому проекту с минимальными изменениями / по индивидуальному проекту по технологии 2, %:"]
[null,null,"по типовому проекту (без изменений в проекте), %",null,null,"Указывается доля реализованных домокомплектов по типовому проекту в общем объёме реализации в шт. за год / квартал по технологии 2."]
[null,null,"по типовому проекту с минимальными изменениями (изменения проекта повлекли изменение цены не более чем на 10%), %",null,null,"Указывается доля реализованных домокомплектов, изменения в проект которых привели к изменению цены не более чем на 10%, в общем объёме реализации в шт. за год / квартал по технологии 2."]
[null,null,"по индивидуальному проекту (изменения проекта повлекли изменение цены более чем на 10%), %",null,null,"Указывается доля реализованных домокомплектов, изменения в проект которых привели к изменению цены более чем на 10%, в общем объёме реализации в шт. за год / квартал по технологии 2."]
[null,"2.9","Средняя стоимость доставки домокомплекта в пересчете на 1 км по технологии 2, руб./км ",null,null,"Указывается значение средней стоимости доставки домокомплектов, проданных за год, в пересчете на 1 км по технологии 2."]
[null,"2.10","Регионы продажи домокомплектов, и соответствующая им доля в общем объёме реализации в % по технологии 2",null,null,"Указываются все регионы, в которые были проданы домокомплекты за год / квартал по технологии 2, и их доля в общем объёме продаж по технологии 2 соответствующего периода, которая приходится на эти регионы."]
[null,"2.11","В случае, если Вы проводите оценку потенциального спроса на домокомплекты в регионах присутствия, укажите значение спроса в регионах присутствия в год, шт.",null,null,"Указывается оценка потенциального спроса на домокомплекты в регионах присутствия в шт. в год, в случае, если такая оценка производится."]
[null,"2.12","Планируете ли Вы расширение / увеличение регионов продаж домокомплектов в 2023 году по технологии 2:",null,null,"Проставляется отметка ◉ для одного из значений."]
[null,null,"да"]
[null,null,"нет"]
[null,"2.13","Доля продаж домокомплектов с тёплым контуром / с чистовой отделкой / под ключ по технологии 2, %:"]
[null,null,"с холодным контуром, %",null,null,"Указывается доля количества заключенных договоров продажи домокомплектов с холодным контуром от общего объёма продаж компании в шт. за год / квартал по технологии 2."]
[null,null,"с тёплым контуром, %",null,null,"Указывается доля количества заключенных договоров продажи домокомплектов с тёплым контуром от общего объёма продаж компании в шт. за год / квартал по технологии 2."]
[null,null,"чистовой отделкой, %",null,null,"Указывается доля количества заключенных договоров продажи домокомплектов с чистовой отделкой от общего объёма продаж компании в шт. за год / квартал по технологии 2."]
[null,null,"отделкой под ключ, %",null,null,"Указывается доля количества заключенных договоров продажи домокомплектов отделкой под ключ от общего объёма продаж компании в шт. за год / квартал по технологии 2."]
[null,"2.14","Средняя стоимость реализуемых домокомплектов с тёплым контуром / с чистовой отделкой / под ключ, млн руб. по технологии 2:"]
[null,null,"с холодным контуром, млн руб.",null,null,"Указывается значение средней стоимости проданных за год домокомплектов без отделки, инженерного оборудования и утепления в млн руб. за год / квартал по технологии 2."]
[null,null,"с тёплым контуром, млн руб.",null,null,"Указывается значение средней стоимости проданных за год домокомплектов без отделки и инженерного оборудования в млн руб. за год / квартал по технологии 2."]
[null,null,"чистовой отделкой, млн руб.",null,null,"Указывается значение средней стоимости проданных за год домокомплектов с чистовой отделкой и инженерным оборудованием в млн руб. за год / квартал по технологии 2."]
[null,null,"отделкой под ключ, включая инженерные сети, млн руб.",null,null,"Указывается значение средней стоимости проданных за год домокомплектов с отделкой под ключ и инженерным оборудованием в млн руб. за год / квартал по технологии 2."]
[null,"2.15","Доля продаж с привлечением ипотечного кредита по технологии 2, %",null,null,"Указывается значение отношения количества заключенных договоров, оплата которых производится с привлечением кредитных средств, к общему количеству заключенных договоров за год / квартал по технологии 2."]
[null,"2.16","Применение льготных ипотечных программ по технологии 2:",null,null,"Проставляется отметка ☑ для одного или нескольких значений.\nУказываются льготные ипотечные программы, которые используют покупатели домокомплектов по технологии 2."]
[null,null,"льготная ипотека"]
[null,null,"семейная ипотека"]
[null,null,"сельская ипотека"]
[null,null,"ИТ-ипотека"]
[null,null,"дальневосточная ипотека"]
[null,"2.17","Распределение доли льготных ипотечных программ по технологии 2, %:",null,null,null,{"$f":"\"Раскрывается, если в п. \"&$B$121&\" выбран по крайней мере 1 вариант ответа\"","v":"Раскрывается, если в п. 2.16 выбран по крайней мере 1 вариант ответа"}]
[null,null,"льготная ипотека, %",null,null,"Указывается значение отношения количества заключенных договоров с применением программы льготной ипотеки к общему количеству заключенных договоров за год / квартал по технологии 2.",{"$f":"\"Раскрывается, если в п. \"&$B$121&\" выбрано «\"&C122&\"»\"","v":"Раскрывается, если в п. 2.16 выбрано «льготная ипотека»"}]
[null,null,"семейная ипотека, %",null,null,"Указывается значение отношения количества заключенных договоров с применением программы семейной ипотеки к общему количеству заключенных договоров за год / квартал по технологии 2.",{"$f":"\"Раскрывается, если в п. \"&$B$121&\" выбрано «\"&C123&\"»\"","v":"Раскрывается, если в п. 2.16 выбрано «семейная ипотека»"}]
[null,null,"сельская ипотека, %",null,null,"Указывается значение отношения количества заключенных договоров с применением программы сельской ипотеки к общему количеству заключенных договоров за год / квартал по технологии 2.",{"$f":"\"Раскрывается, если в п. \"&$B$121&\" выбрано «\"&C124&\"»\"","v":"Раскрывается, если в п. 2.16 выбрано «сельская ипотека»"}]
[null,null,"ИТ-ипотека, %",null,null,"Указывается значение отношения количества заключенных договоров с применением программы ИТ-ипотеки к общему количеству заключенных договоров за год / квартал по технологии 2.",{"$f":"\"Раскрывается, если в п. \"&$B$121&\" выбрано «\"&C125&\"»\"","v":"Раскрывается, если в п. 2.16 выбрано «ИТ-ипотека»"}]
[null,null,"дальневосточная ипотека, %",null,null,"Указывается значение отношения количества заключенных договоров с применением программы дальневосточной ипотеки к общему количеству заключенных договоров за год / квартал. по технологии 2",{"$f":"\"Раскрывается, если в п. \"&$B$121&\" выбрано «\"&C126&\"»\"","v":"Раскрывается, если в п. 2.16 выбрано «дальневосточная ипотека»"}]
[null,"2.18","Банки-партнёры по ипотечному кредитованию при реализации домокомплектов по технологии 2",null,null,"Указываются все банки-партнёры по ипотечному кредитованию при реализации домокомплектов по технологии 2."]
[null,"2.19","Распределение доли продаж домокомплектов, реализованных по договору купли-продажи, по ценовым сегментам по технологии 2, %:",null,null,null,{"$f":"\"Раскрывается, если в п. \"&$B$78&\" выбрано «\"&$C$79&\"»\"","v":"Раскрывается, если в п. 2.5 выбрано «договор купли-продажи домокомплекта»"}]
[null,null,"стоимостью менее 3,5 млн руб., %",null,null,"Указывается доля продаж домокомплектов, реализованных по договору купли-продажи, стоимостью менее 3,5 млн руб. от общего количества продаж домокомплектов в шт. за год / квартал по технологии 2.","Раскрывается, если в п. 2.5 выбрано «договор купли-продажи домокомплекта»"]
[null,null,"стоимостью от 3,5 млн руб. до 7 млн руб., %",null,null,"Указывается доля продаж домокомплектов, реализованных по договору купли-продажи, стоимостью от 3,5 млн руб. до 7 млн руб. от общего количества продаж домокомплектов в шт. за год / квартал по технологии 2.","Раскрывается, если в п. 2.5 выбрано «договор купли-продажи домокомплекта»"]
[null,null,"стоимостью более 7 млн руб., %",null,null,"Указывается доля продаж домокомплектов, реализованных по договору купли-продажи, стоимостью более 7 млн руб. от общего количества продаж домокомплектов в шт. за год / квартал по технологии 2.","Раскрывается, если в п. 2.5 выбрано «договор купли-продажи домокомплекта»"]
[null,"2.20","Распределение доли продаж домокомплектов, реализованных по договору подряда, по ценовым сегментам по технологии 2, %:",null,null,null,{"$f":"\"Раскрывается, если в п. \"&$B$78&\" выбрано «\"&$C$80&\"»\"","v":"Раскрывается, если в п. 2.5 выбрано «договор подряда на строительство дома из домокомплекта»"}]
[null,null,"стоимостью менее 3,5 млн руб., %",null,null,"Указывается доля продаж домокомплектов, реализованных по договору подряда, стоимостью менее 3,5 млн руб. от общего количества продаж домокомплектов в шт. за год / квартал по технологии 2.",{"$f":"\"Раскрывается, если в п. \"&$B$78&\" выбрано «\"&$C$80&\"»\"","v":"Раскрывается, если в п. 2.5 выбрано «договор подряда на строительство дома из домокомплекта»"}]
[null,null,"стоимостью от 3,5 млн руб. до 7 млн руб., %",null,null,"Указывается доля продаж домокомплектов, реализованных по договору подряда, стоимостью от 3,5 млн руб. до 7 млн руб. от общего количества продаж домокомплектов в шт. за год / квартал по технологии 2.","Раскрывается, если в п. 2.5 выбрано «договор подряда на строительство дома из домокомплекта»"]
[null,null,"стоимостью более 7 млн руб., %",null,null,"Указывается доля продаж домокомплектов, реализованных по договору подряда, стоимостью более 7 млн руб. от общего количества продаж домокомплектов в шт. за год / квартал по технологии 2.","Раскрывается, если в п. 2.5 выбрано «договор подряда на строительство дома из домокомплекта»"]
[null,"2.21","Являетесь ли Вы участником программы Минпромторга на получение субсидии для компенсации 10%-скидки:",null,null,"Проставляется отметка ◉ для одного из значений. Ссылка на постановление Правительства РФ о предоставлении субсидии: http://government.ru/docs/all/144380/"]
[null,null,"да"]
[null,null,"нет"]
[null,"2.22","Доля продаж домокомплектов с применением скидки от Минпромторга по технологии 2, %",null,null,"Указывается доля объёма продаж домокомплектов с учетом программы Минпромторга от общего объёма продаж компании за год / квартал по технологии 2.",{"$f":"\"Раскрывается, если в п. \"&$B$142&\" выбрано «да»\"","v":"Раскрывается, если в п. 2.21 выбрано «да»"}]
[null,"2.23","В случае, если Ваша компания выполняет сборку домокомплектов своими силами, укажите себестоимость работ по монтажу домокомплекта по технологии 2 в пересчёте на 1 м², руб./м²",null,null,"Указывается значение средней стоимости сборки домокомплектов по технологии 2, проданных за год, в пересчете на 1 м², в случае, если Ваша компания выполняет сборку домокомплектов своими силами."]
[null,"Раздел 3. Технология 2. Типовые домокомплекты - ТОП-3 по количеству продаж в шт. за год / квартал по технологии 2"]
[null,"3.1","ТОП-1"]
[null,"3.1.1","Домокомплект, который занимает Топ-1 в структуре продаж по технологии 2",null,null,"Указывается ID / Номенклатурный номер / ссылка на проект домокомплекта, который занимает Топ-1 структуре продаж за год / квартал по технологии 2."]
[null,"3.1.2","Доля продаж домокомплекта в общей выручке компании, %",null,null,"Указывается доля продаж домокомплекта в общей выручке компании за год / квартал."]
[null,"3.1.3","Цена домокомплекта, млн руб.",null,null,"Указывается цена домокомплекта в млн руб."]
[null,"3.1.4","Площадь домокомплекта, м²",null,null,"Указывается площадь домокомплекта в м²."]
[null,"3.1.5","Этажность домокомплекта, шт.",null,null,"Указывается количество этажей в домокомплекте в шт."]
[null,"3.1.6","Количество комнат в домокомплекте, шт.",null,null,"Указывается количество комнат в домокомплекте в шт."]
[null,"3.1.7","Наличие отделки домокомплекта ",null,null,"Проставляется отметка ☑ для одного или нескольких значений."]
[null,null,"холодный контур"]
[null,null,"тёплый контур"]
[null,null,"чистовая отделка"]
[null,null,"отделка под ключ"]
[null,"3.2","ТОП-2"]
[null,"3.2.1","Домокомплект, который занимает Топ-1 в структуре продаж по технологии 2",null,null,"Указывается ID / Номенклатурный номер / ссылка на проект домокомплекта, который занимает Топ-1 структуре продаж за год / квартал по технологии 2."]
[null,"3.2.2","Доля продаж домокомплекта в общей выручке компании, %",null,null,"Указывается доля продаж домокомплекта в общей выручке компании за год / квартал."]
[null,"3.2.3","Цена домокомплекта, млн руб.",null,null,"Указывается цена домокомплекта в млн руб."]
[null,"3.2.4","Площадь домокомплекта, м²",null,null,"Указывается площадь домокомплекта в м²."]
[null,"3.2.5","Этажность домокомплекта, шт.",null,null,"Указывается количество этажей в домокомплекте в шт."]
[null,"3.2.6","Количество комнат в домокомплекте, шт.",null,null,"Указывается количество комнат в домокомплекте в шт."]
[null,"3.2.7","Наличие отделки домокомплекта ",null,null,"Проставляется отметка ☑ для одного или нескольких значений."]
[null,null,"холодный контур"]
[null,null,"тёплый контур"]
[null,null,"чистовая отделка"]
[null,null,"отделка под ключ"]
[null,"3.3","ТОП-3"]
[null,"3.3.1","Домокомплект, который занимает Топ-1 в структуре продаж по технологии 2",null,null,"Указывается ID / Номенклатурный номер / ссылка на проект домокомплекта, который занимает Топ-1 структуре продаж за год / квартал по технологии 2."]
[null,"3.3.2","Доля продаж домокомплекта в общей выручке компании, %",null,null,"Указывается доля продаж домокомплекта в общей выручке компании за год / квартал."]
[null,"3.3.3","Цена домокомплекта, млн руб.",null,null,"Указывается цена домокомплекта в млн руб."]
[null,"3.3.4","Площадь домокомплекта, м²",null,null,"Указывается площадь домокомплекта в м²."]
[null,"3.3.5","Этажность домокомплекта, шт.",null,null,"Указывается количество этажей в домокомплекте в шт."]
[null,"3.3.6","Количество комнат в домокомплекте, шт.",null,null,"Указывается количество комнат в домокомплекте в шт."]
[null,"3.3.7","Наличие отделки домокомплекта ",null,null,"Проставляется отметка ☑ для одного или нескольких значений."]
[null,null,"холодный контур"]
[null,null,"тёплый контур"]
[null,null,"чистовая отделка"]
[null,null,"отделка под ключ"]
[null,"Для заполнения анкеты по третьей технологии производства, пожалуйста, перейдите на лист \"Технология 3\"."]

{"sheet":"Технология 3","index":2,"n_rows":184,"n_cols":7,"rows_kept":184,"cut":false,"hidden":false,"merged":[[183,1,183,5],[166,1,170,1],[167,3,167,4],[168,3,168,4],[169,3,169,4],[170,3,170,4],[178,1,182,1],[179,3,179,4],[180,3,180,4],[181,3,181,4],[182,3,182,4],[146,1,146,5],[154,1,158,1],[155,3,155,4],[156,3,156,4],[157,3,157,4],[158,3,158,4],[126,1,131,1],[132,3,132,4],[133,1,136,1],[137,1,140,1],[141,1,143,1],[142,3,142,4],[143,3,143,4],[120,1,125,1],[121,3,121,4],[122,3,122,4],[123,3,123,4],[124,3,124,4],[125,3,125,4],[97,3,97,4],[98,3,98,4],[99,1,102,1],[103,3,103,4],[106,1,108,1],[107,3,107,4],[108,3,108,4],[90,1,98,1],[91,3,91,4],[92,3,92,4],[93,3,93,4],[94,3,94,4],[95,3,95,4],[96,3,96,4],[109,1,113,1],[114,1,118,1],[77,1,79,1],[78,3,78,4],[79,3,79,4],[80,1,89,1],[81,3,81,4],[82,3,82,4],[83,3,83,4],[84,3,84,4],[85,3,85,4],[86,3,86,4],[87,3,87,4],[88,3,88,4],[89,3,89,4],[67,1,71,1],[68,3,68,4],[69,3,69,4],[70,3,70,4],[71,3,71,4],[72,1,76,1],[57,1,57,5],[58,1,61,1],[62,1,66,1],[63,3,63,4],[64,3,64,4],[65,3,65,4],[66,3,66,4],[51,1,53,1],[52,3,52,4],[53,3,53,4],[54,1,56,1],[55,3,55,4],[56,3,56,4],[45,3,45,4],[46,1,48,1],[47,3,47,4],[48,3,48,4],[49,3,49,4],[50,3,50,4],[37,1,39,1],[38,3,38,4],[39,3,39,4],[40,1,44,1],[41,3,41,4],[42,3,42,4],[43,3,43,4],[44,3,44,4],[29,3,29,4],[30,3,30,4],[31,1,33,1],[32,3,32,4],[33,3,33,4],[34,1,36,1],[35,3,35,4],[36,3,36,4],[19,3,19,4],[20,3,20,4],[21,1,30,1],[22,3,22,4],[23,3,23,4],[24,3,24,4],[25,3,25,4],[26,3,26,4],[27,3,27,4],[28,3,28,4],[10,1,13,1],[11,3,11,4],[12,3,12,4],[13,3,13,4],[14,1,16,1],[18,3,18,4],[1,1,1,5],[2,1,2,5],[4,1,4,5],[5,3,5,4],[6,1,9,1],[7,3,7,4],[8,3,8,4],[9,3,9,4]]}
[]
[null,"Анкета для опроса компаний производителей домокомплектов\nТехнология 3"]
[null,"Анкета заполняется для каждой технологии производства отдельно.\nДля заполнения анкеты по четвёртой технологии производства, пожалуйста, перейдите на лист \"Технология 4\"."]
[null,"№ п/п","Наименование параметра","Период - 2022 г.","Период - 1 кв. 2023 г.","Комментарий","Техническая информация"]
[null,"Раздел 1. Технология 3. Производство домокомплектов по технологии 3"]
[null,"1.1","Выберете наименование третьей технологии производства, если Ваша компания использует более одной технологии производства",null,null,"Выбирается из выпадающего списка название технологии производства в случае наличия у компании нескольких производств по различным технологиям."]
[null,"1.2","Текущий объём производства домокомплектов по технологии 3:"]
[null,null,"в шт.",null,null,"Указывается значение количества производимых домокомплектов за год / квартал по технологии 3."]
[null,null,"в м²",null,null,"Указывается значение общей площади производимых домокомплектов за год / квартал по технологии 3."]
[null,null,"в млн руб.",null,null,"Указывается значение общей суммы производимых домокомплектов по рыночной цене за год / квартал по технологии 3."]
[null,"1.3","Прогнозный объём производства домокомплектов в 2023 году по технологии 3:"]
[null,null,"в шт.",null,null,"Указывается значение количества производимых домокомплектов на прогнозный 2023 год по технологии 3."]
[null,null,"в м²",null,null,"Указывается значение общей площади производимых домокомплектов на прогнозный 2023 год по технологии 3."]
[null,null,"в млн руб.",null,null,"Указывается значение общей суммы производимых домокомплектов по рыночной цене на прогнозный 2023 год по технологии 3."]
[null,"1.4","Максимальный объём производственных мощностей без переоборудования и модернизации по технологии 3:"]
[null,null,"в шт.",null,null,"Указывается возможное значение количества производимых домокомплектов при условии максимальной возможной загрузки производственных мощностей (без переоборудования и модернизации) в пересчёте на год по технологии 3."]
[null,null,"в м²",null,null,"Указывается возможное значение общей площади производимых домокомплектов при условии максимальной возможной загрузки производственных мощностей (без переоборудования и модернизации) в пересчёте на год по технологии 3."]
[null,"1.5","Средняя себестоимость производства домокомплектов по технологии 3, млн руб.",null,null,"Указывается значение средней себестоимости производства домокомплектов по технологии 3 в млн руб. за год / квартал"]
[null,"1.6","Доля деталей сборной конструкции, произведённых заводским  способом (с использованием станков и оборудования) по технологии 3, %",null,null,"Указывается значение доли деталей сборной конструкции, которые производятся заводским способом (с использованием станков и оборудования) по технологии 3."]
[null,"1.7","Среднее время, необходимое для производства домокомплекта по технологии 3, дней",null,null,"Указывается значение среднего времени производства домокомплекта без учета доработок проекта (только производственный цикл) в днях по технологии 3."]
[null,"1.8","Средний срок сборки домокомплекта по технологии 3, дней",null,null,"Указывается значение среднего времени в днях, необходимого для сборки домокомплекта по технологии 3, без учета доработок проекта."]
[null,"1.9","Основные факторы, ограничивающие потенциальный рост объёмов производства по технологии 3:",null,null,"Проставляется отметка ☑ для одного или нескольких значений (указываются все факторы, актуальные в настоящее время)."]
[null,null,"дефицит или высокая стоимость материалов"]
[null,null,"отсутствие комплектующих к иностранному оборудованию"]
[null,null,"нехватка помещений для производства"]
[null,null,"нехватка рабочей силы"]
[null,null,"отсутствие стабильного спроса на продукцию"]
[null,null,"отсутствие возможности получения льготного кредитования для инвестиций в расширение производственных площадей, замену или модернизацию оборудования и т. д."]
[null,null,"отсутствие возможности получения кредитования для увеличения оборотного капитала"]
[null,null,"отсутствие или нехватка мер государственной поддержки"]
[null,null,"иное",null,null,"Просьба расшифровать."]
[null,"1.10","Есть ли у Вас планы по увеличению объёма производства по технологии 3, предполагающие инвестиции в расширение производственных площадей, замену или модернизацию оборудования и т. д.:",null,null,"Проставляется отметка ◉ для одного из значений."]
[null,null,"да"]
[null,null,"нет"]
[null,"1.11","Готовы ли Вы пересмотреть планы по увеличению объёма производства, в случае, если государством будут разработаны программы льготного кредитования для этих целей:",null,null,"Проставляется отметка ◉ для одного из значений.",{"$f":"\"Раскрывается, если в п. \"&$B$32&\" выбрано «нет»\"","v":"Раскрывается, если в п. 1.10 выбрано «нет»"}]
[null,null,"да",null,null,null,{"$f":"\"Раскрывается, если в п. \"&$B$32&\" выбрано «нет»\"","v":"Раскрывается, если в п. 1.10 выбрано «нет»"}]
[null,null,"нет",null,null,null,"Раскрывается, если в п. 1.10 выбрано «нет»"]
[null,"1.12","На сколько планируется увеличить объём производства по отношению к текущему объёму производства по технологии 3:",null,null,null,{"$f":"\"Раскрывается, если в п. \"&$B$32&\" выбрано «да»\"","v":"Раскрывается, если в п. 1.10 выбрано «да»"}]
[null,null,"в шт.",null,null,"Указывается потенциальный прирост общей площади производимых домокомплектов по технологии 3 в пересчете на год по отношению к текущему объёму производства за год при реализации планов по расширению производственных площадей.",{"$f":"\"Раскрывается, если в п. \"&$B$32&\" выбрано «да»\"","v":"Раскрывается, если в п. 1.10 выбрано «да»"}]
[null,null,"в м²",null,null,"Указывается потенциальный прирост количества производимых домокомплектов по технологии 3 в пересчете на год по отношению к текущему объёму производства за год при реализации планов по расширению производственных площадей.","Раскрывается, если в п. 1.10 выбрано «да»"]
[null,"1.13","Из каких источников финансирования планируется реализовать указанные планы по увеличению объёма производства:",null,null,"Проставляется отметка ☑ для одного или нескольких значений источников финансирования для целей, указанных в п. 1.10.","Раскрывается, если в п. 1.10 выбрано «да»"]
[null,null,"собственные средства",null,null,null,"Раскрывается, если в п. 1.10 выбрано «да»"]
[null,null,"кредитные средства",null,null,null,"Раскрывается, если в п. 1.10 выбрано «да»"]
[null,null,"субсидии",null,null,null,"Раскрывается, если в п. 1.10 выбрано «да»"]
[null,null,"иное",null,null,"Просьба расшифровать.","Раскрывается, если в п. 1.10 выбрано «да»"]
[null,"1.14","Какой объём кредитных средств требуется для реализации планов по увеличению объёма производства, млн руб.",null,null,"Указывается приблизительная оценка объёма кредитных средств, которые компания планирует привлечь на цели, указанные в п. 1.10.",{"$f":"\"Раскрывается, если в п. \"&$B$41&\" выбрано «кредитные средства»\"","v":"Раскрывается, если в п. 1.13 выбрано «кредитные средства»"}]
[null,"1.15","Возникает ли у Вас потребность в привлечении кредитных средств для увеличения оборотного капитала:",null,null,"Проставляется отметка ◉ для одного из значений."]
[null,null,"да"]
[null,null,"нет"]
[null,"1.16","Банки-партнёры по привлечению кредитных средств для инвестиций в увеличение объёма производства по технологии 3",null,null,"Указываются все банки-партнёры по привлечению кредитных средств для инвестиций в увеличение объёма производства по технологии 3."]
[null,"1.17","Доля оборудования иностранного производства, используемого в изготовлении домокомплектов по технологии 3",null,null,"Указывается оценка доли использования в производстве домокомплектов по технологии 3 иностранного оборудования от общего числа оборудования."]
[null,"1.18","Какие проблемы возникают при эксплуатации и содержании оборудования, используемого в производстве по технологии 3:"]
[null,null,"иностранного производства",null,null,"Просьба заполнить информацией о проблемах, возникающих при эксплуатации оборудования иностранного производства.",{"$f":"\"Раскрывается, если в п. \"&$B$51&\" внесено значение больше, чем 0%\"","v":"Раскрывается, если в п. 1.17 внесено значение больше, чем 0%"}]
[null,null,"российского производства",null,null,"Просьба заполнить информацией о проблемах, возникающих при эксплуатации оборудования российского производства.",{"$f":"\"Раскрывается, если в п. \"&$B$51&\" внесено значение больше, чем 100%\"","v":"Раскрывается, если в п. 1.17 внесено значение больше, чем 100%"}]
[null,"1.19","Планируется ли замена иностранного оборудования на российские аналоги:",null,null,"Проставляется отметка ◉ для одного из значений.",{"$f":"\"Раскрывается, если в п. \"&$B$51&\" внесено значение больше, чем 0%\"","v":"Раскрывается, если в п. 1.17 внесено значение больше, чем 0%"}]
[null,null,"да",null,null,null,"Раскрывается, если в п. 1.17 внесено значение больше, чем 0%"]
[null,null,"нет",null,null,null,"Раскрывается, если в п. 1.17 внесено значение больше, чем 0%"]
[null,"Раздел 2. Технология 3. Реализация и структура продаж домокомплектов по технологии 3"]
[null,"2.1","Текущий объём продаж домокомплектов по технологии 3:"]
[null,null,"в шт.",null,null,"Указывается значение количества продаваемых домокомплектов за год / квартал по технологии 3."]
[null,null,"в м²",null,null,"Указывается значение общей площади продаваемых домокомплектов за год / квартал по технологии 3."]
[null,null,"в млн руб.",null,null,"Указывается значение общей суммы продаваемых домокомплектов по рыночной цене за год / квартал по технологии 3."]
[null,"2.2","Каналы продаж домокомплектов по технологии 3:",null,null,"Проставляется отметка ☑ для одного или нескольких значений."]
[null,null,"прямой договор между производителем и заказчиком"]
[null,null,"дистрибьютор"]
[null,null,"дилерская сеть"]
[null,null,"Ваш вариант",null,null,"Просьба расшифровать."]
[null,"2.3","Варианты сборки домокомплекта по технологии 3:",null,null,"Проставляется отметка ☑ для одного или нескольких значений."]
[null,null,"собственная сборка"]
[null,null,"сборка аккредитованным подрядчиком"]
[null,null,"сборка неаккредитованным подрядчиком"]
[null,null,"самостоятельная сборка клиентом"]
[null,"2.4","Распределение вариантов сборки домокомплектов по долям по технологии 3, %:",null,null,"Если в п. 2.3 указано больше 1 ответа, то укажите распределение вариантов сборки домокомплектов по долям от общего объёма продаж в шт. за год / квартал по технологии 3.",{"$f":"\"Раскрывается, если в п. \"&$B$68&\" отмечено более 1 варианта ответа\"","v":"Раскрывается, если в п. 2.3 отмечено более 1 варианта ответа"}]
[null,null,"собственная сборка, %",null,null,null,{"$f":"\"Раскрывается, если в п. \"&$B$68&\" выбрано «\"&C69&\"»\"","v":"Раскрывается, если в п. 2.3 выбрано «собственная сборка»"}]
[null,null,"сборка аккредитованным подрядчиком, %",null,null,null,{"$f":"\"Раскрывается, если в п. \"&$B$68&\" выбрано «\"&C70&\"»\"","v":"Раскрывается, если в п. 2.3 выбрано «сборка аккредитованным подрядчиком»"}]
[null,null,"сборка неаккредитованным подрядчиком, %",null,null,null,"Раскрывается, если в п. 2.3 выбрано «сборка неаккредитованным подрядчиком»"]
[null,null,"самостоятельная сборка клиентом, %",null,null,null,"Раскрывается, если в п. 2.3 выбрано «самостоятельная сборка клиентом»"]
[null,"2.5","Типы заключаемых с клиентами договоров по технологии 3:",null,null,"Проставляется отметка ☑ для одного или нескольких значений."]
[null,null,"договор купли-продажи домокомплекта"]
[null,null,"договор подряда на строительство дома из домокомплекта"]
[null,"2.6","Какие из перечисленных компонентов могут быть включены в договор купли-продажи по технологии 3:",null,null,"Проставляется отметка ☑ для одного или нескольких значений.",{"$f":"\"Раскрывается, если в п. \"&$B$78&\" выбрано «\"&$C$79&\"»\"","v":"Раскрывается, если в п. 2.5 выбрано «договор купли-продажи домокомплекта»"}]
[null,null,"каркас",null,null,null,{"$f":"\"Раскрывается, если в п. \"&$B$78&\" выбрано «\"&$C$79&\"»\"","v":"Раскрывается, если в п. 2.5 выбрано «договор купли-продажи домокомплекта»"}]
[null,null,"стены и фасад",null,null,null,"Раскрывается, если в п. 2.5 выбрано «договор купли-продажи домокомплекта»"]
[null,null,"межкомнатные перекрытия",null,null,null,"Раскрывается, если в п. 2.5 выбрано «договор купли-продажи домокомплекта»"]
[null,null,"крыша",null,null,null,"Раскрывается, если в п. 2.5 выбрано «договор купли-продажи домокомплекта»"]
[null,null,"окна и двери",null,null,null,"Раскрывается, если в п. 2.5 выбрано «договор купли-продажи домокомплекта»"]
[null,null,"фундамент",null,null,null,"Раскрывается, если в п. 2.5 выбрано «договор купли-продажи домокомплекта»"]
[null,null,"дом с тёплым контуром",null,null,null,"Раскрывается, если в п. 2.5 выбрано «договор купли-продажи домокомплекта»"]
[null,null,"дом с чистовой отделкой",null,null,null,"Раскрывается, если в п. 2.5 выбрано «договор купли-продажи домокомплекта»"]
[null,null,"дом с отделкой под ключ",null,null,null,"Раскрывается, если в п. 2.5 выбрано «договор купли-продажи домокомплекта»"]
[null,"2.7","Какие работы могут быть включены в договор подряда по технологии 3:",null,null,"Проставляется отметка ☑ для одного или нескольких значений.",{"$f":"\"Раскрывается, если в п. \"&$B$78&\" выбрано «\"&$C$80&\"»\"","v":"Раскрывается, если в п. 2.5 выбрано «договор подряда на строительство дома из домокомплекта»"}]
[null,null,"сборка каркаса",null,null,null,{"$f":"\"Раскрывается, если в п. \"&$B$78&\" выбрано «\"&$C$80&\"»\"","v":"Раскрывается, если в п. 2.5 выбрано «договор подряда на строительство дома из домокомплекта»"}]
[null,null,"установка крыши",null,null,null,"Раскрывается, если в п. 2.5 выбрано «договор подряда на строительство дома из домокомплекта»"]
[null,null,"установка окон и дверей",null,null,null,"Раскрывается, если в п. 2.5 выбрано «договор подряда на строительство дома из домокомплекта»"]
[null,null,"постройка фундамента",null,null,null,"Раскрывается, если в п. 2.5 выбрано «договор подряда на строительство дома из домокомплекта»"]
[null,null,"обеспечение дома инженерными системами",null,null,null,"Раскрывается, если в п. 2.5 выбрано «договор подряда на строительство дома из домокомплекта»"]
[null,null,"обеспечение дома тёплым контуром",null,null,null,"Раскрывается, если в п. 2.5 выбрано «договор подряда на строительство дома из домокомплекта»"]
[null,null,"чистовая отделка дома",null,null,null,"Раскрывается, если в п. 2.5 выбрано «договор подряда на строительство дома из домокомплекта»"]
[null,null,"отделка дома под ключ",null,null,null,"Раскрывается, если в п. 2.5 выбрано «договор подряда на строительство дома из домокомплекта»"]
[null,"2.8","Доля реализации домокомплектов по типовому проекту / по типовому проекту с минимальными изменениями / по индивидуальному проекту по технологии 3, %:"]
[null,null,"по типовому проекту (без изменений в проекте), %",null,null,"Указывается доля реализованных домокомплектов по типовому проекту в общем объёме реализации в шт. за год / квартал по технологии 3."]
[null,null,"по типовому проекту с минимальными изменениями (изменения проекта повлекли изменение цены не более чем на 10%), %",null,null,"Указывается доля реализованных домокомплектов, изменения в проект которых привели к изменению цены не более чем на 10%, в общем объёме реализации в шт. за год / квартал по технологии 3."]
[null,null,"по индивидуальному проекту (изменения проекта повлекли изменение цены более чем на 10%), %",null,null,"Указывается доля реализованных домокомплектов, изменения в проект которых привели к изменению цены более чем на 10%, в общем объёме реализации в шт. за год / квартал по технологии 3."]
[null,"2.9","Средняя стоимость доставки домокомплекта в пересчете на 1 км по технологии 3, руб./км ",null,null,"Указывается значение средней стоимости доставки домокомплектов, проданных за год, в пересчете на 1 км по технологии 3."]
[null,"2.10","Регионы продажи домокомплектов, и соответствующая им доля в общем объёме реализации в % по технологии 3",null,null,"Указываются все регионы, в которые были проданы домокомплекты за год / квартал по технологии 3, и их доля в общем объёме продаж по технологии 3 соответствующего периода, которая приходится на эти регионы."]
[null,"2.11","В случае, если Вы проводите оценку потенциального спроса на домокомплекты в регионах присутствия, укажите значение спроса в регионах присутствия в год, шт.",null,null,"Указывается оценка потенциального спроса на домокомплекты в регионах присутствия в шт. в год, в случае, если такая оценка производится."]
[null,"2.12","Планируете ли Вы расширение / увеличение регионов продаж домокомплектов в 2023 году по технологии 3:",null,null,"Проставляется отметка ◉ для одного из значений."]
[null,null,"да"]
[null,null,"нет"]
[null,"2.13","Доля продаж домокомплектов с тёплым контуром / с чистовой отделкой / под ключ по технологии 3, %:"]
[null,null,"с холодным контуром, %",null,null,"Указывается доля количества заключенных договоров продажи домокомплектов с холодным контуром от общего объёма продаж компании в шт. за год / квартал по технологии 3."]
[null,null,"с тёплым контуром, %",null,null,"Указывается доля количества заключенных договоров продажи домокомплектов с тёплым контуром от общего объёма продаж компании в шт. за год / квартал по технологии 3."]
[null,null,"чистовой отделкой, %",null,null,"Указывается доля количества заключенных договоров продажи домокомплектов с чистовой отделкой от общего объёма продаж компании в шт. за год / квартал по технологии 3."]
[null,null,"отделкой под ключ, %",null,null,"Указывается доля количества заключенных договоров продажи домокомплектов отделкой под ключ от общего объёма продаж компании в шт. за год / квартал по технологии 3."]
[null,"2.14","Средняя стоимость реализуемых домокомплектов с тёплым контуром / с чистовой отделкой / под ключ, млн руб. по технологии 3:"]
[null,null,"с холодным контуром, млн руб.",null,null,"Указывается значение средней стоимости проданных за год домокомплектов без отделки, инженерного оборудования и утепления в млн руб. за год / квартал по технологии 3."]
[null,null,"с тёплым контуром, млн руб.",null,null,"Указывается значение средней стоимости проданных за год домокомплектов без отделки и инженерного оборудования в млн руб. за год / квартал по технологии 3."]
[null,null,"чистовой отделкой, млн руб.",null,null,"Указывается значение средней стоимости проданных за год домокомплектов с чистовой отделкой и инженерным оборудованием в млн руб. за год / квартал по технологии 3."]
[null,null,"отделкой под ключ, включая инженерные сети, млн руб.",null,null,"Указывается значение средней стоимости проданных за год домокомплектов с отделкой под ключ и инженерным оборудованием в млн руб. за год / квартал по технологии 3."]
[null,"2.15","Доля продаж с привлечением ипотечного кредита по технологии 3, %",null,null,"Указывается значение отношения количества заключенных договоров, оплата которых производится с привлечением кредитных средств, к общему количеству заключенных договоров за год / квартал по технологии 3."]
[null,"2.16","Применение льготных ипотечных программ по технологии 3:",null,null,"Проставляется отметка ☑ для одного или нескольких значений.\nУказываются льготные ипотечные программы, которые используют покупатели домокомплектов по технологии 3."]
[null,null,"льготная ипотека"]
[null,null,"семейная ипотека"]
[null,null,"сельская ипотека"]
[null,null,"ИТ-ипотека"]
[null,null,"дальневосточная ипотека"]
[null,"2.17","Распределение доли льготных ипотечных программ по технологии 3, %:",null,null,null,{"$f":"\"Раскрывается, если в п. \"&$B$121&\" выбран по крайней мере 1 вариант ответа\"","v":"Раскрывается, если в п. 2.16 выбран по крайней мере 1 вариант ответа"}]
[null,null,"льготная ипотека, %",null,null,"Указывается значение отношения количества заключенных договоров с применением программы льготной ипотеки к общему количеству заключенных договоров за год / квартал по технологии 3.",{"$f":"\"Раскрывается, если в п. \"&$B$121&\" выбрано «\"&C122&\"»\"","v":"Раскрывается, если в п. 2.16 выбрано «льготная ипотека»"}]
[null,null,"семейная ипотека, %",null,null,"Указывается значение отношения количества заключенных договоров с применением программы семейной ипотеки к общему количеству заключенных договоров за год / квартал по технологии 3.",{"$f":"\"Раскрывается, если в п. \"&$B$121&\" выбрано «\"&C123&\"»\"","v":"Раскрывается, если в п. 2.16 выбрано «семейная ипотека»"}]
[null,null,"сельская ипотека, %",null,null,"Указывается значение отношения количества заключенных договоров с применением программы сельской ипотеки к общему количеству заключенных договоров за год / квартал по технологии 3.",{"$f":"\"Раскрывается, если в п. \"&$B$121&\" выбрано «\"&C124&\"»\"","v":"Раскрывается, если в п. 2.16 выбрано «сельская ипотека»"}]
[null,null,"ИТ-ипотека, %",null,null,"Указывается значение отношения количества заключенных договоров с применением программы ИТ-ипотеки к общему количеству заключенных договоров за год / квартал по технологии 3.",{"$f":"\"Раскрывается, если в п. \"&$B$121&\" выбрано «\"&C125&\"»\"","v":"Раскрывается, если в п. 2.16 выбрано «ИТ-ипотека»"}]
[null,null,"дальневосточная ипотека, %",null,null,"Указывается значение отношения количества заключенных договоров с применением программы дальневосточной ипотеки к общему количеству заключенных договоров за год / квартал. по технологии 3",{"$f":"\"Раскрывается, если в п. \"&$B$121&\" выбрано «\"&C126&\"»\"","v":"Раскрывается, если в п. 2.16 выбрано «дальневосточная ипотека»"}]
[null,"2.18","Банки-партнёры по ипотечному кредитованию при реализации домокомплектов по технологии 3",null,null,"Указываются все банки-партнёры по ипотечному кредитованию при реализации домокомплектов по технологии 3."]
[null,"2.19","Распределение доли продаж домокомплектов, реализованных по договору купли-продажи, по ценовым сегментам по технологии 3, %:",null,null,null,{"$f":"\"Раскрывается, если в п. \"&$B$78&\" выбрано «\"&$C$79&\"»\"","v":"Раскрывается, если в п. 2.5 выбрано «договор купли-продажи домокомплекта»"}]
[null,null,"стоимостью менее 3,5 млн руб., %",null,null,"Указывается доля продаж домокомплектов, реализованных по договору купли-продажи, стоимостью менее 3,5 млн руб. от общего количества продаж домокомплектов в шт. за год / квартал по технологии 3.","Раскрывается, если в п. 2.5 выбрано «договор купли-продажи домокомплекта»"]
[null,null,"стоимостью от 3,5 млн руб. до 7 млн руб., %",null,null,"Указывается доля продаж домокомплектов, реализованных по договору купли-продажи, стоимостью от 3,5 млн руб. до 7 млн руб. от общего количества продаж домокомплектов в шт. за год / квартал по технологии 3.","Раскрывается, если в п. 2.5 выбрано «договор купли-продажи домокомплекта»"]
[null,null,"стоимостью более 7 млн руб., %",null,null,"Указывается доля продаж домокомплектов, реализованных по договору купли-продажи, стоимостью более 7 млн руб. от общего количества продаж домокомплектов в шт. за год / квартал по технологии 3.","Раскрывается, если в п. 2.5 выбрано «договор купли-продажи домокомплекта»"]
[null,"2.20","Распределение доли продаж домокомплектов, реализованных по договору подряда, по ценовым сегментам по технологии 3, %:",null,null,null,{"$f":"\"Раскрывается, если в п. \"&$B$78&\" выбрано «\"&$C$80&\"»\"","v":"Раскрывается, если в п. 2.5 выбрано «договор подряда на строительство дома из домокомплекта»"}]
[null,null,"стоимостью менее 3,5 млн руб., %",null,null,"Указывается доля продаж домокомплектов, реализованных по договору подряда, стоимостью менее 3,5 млн руб. от общего количества продаж домокомплектов в шт. за год / квартал по технологии 3.",{"$f":"\"Раскрывается, если в п. \"&$B$78&\" выбрано «\"&$C$80&\"»\"","v":"Раскрывается, если в п. 2.5 выбрано «договор подряда на строительство дома из домокомплекта»"}]
[null,null,"стоимостью от 3,5 млн руб. до 7 млн руб., %",null,null,"Указывается доля продаж домокомплектов, реализованных по договору подряда, стоимостью от 3,5 млн руб. до 7 млн руб. от общего количества продаж домокомплектов в шт. за год / квартал по технологии 3.","Раскрывается, если в п. 2.5 выбрано «договор подряда на строительство дома из домокомплекта»"]
[null,null,"стоимостью более 7 млн руб., %",null,null,"Указывается доля продаж домокомплектов, реализованных по договору подряда, стоимостью более 7 млн руб. от общего количества продаж домокомплектов в шт. за год / квартал по технологии 3.","Раскрывается, если в п. 2.5 выбрано «договор подряда на строительство дома из домокомплекта»"]
[null,"2.21","Являетесь ли Вы участником программы Минпромторга на получение субсидии для компенсации 10%-скидки:",null,null,"Проставляется отметка ◉ для одного из значений. Ссылка на постановление Правительства РФ о предоставлении субсидии: http://government.ru/docs/all/144380/"]
[null,null,"да"]
[null,null,"нет"]
[null,"2.22","Доля продаж домокомплектов с применением скидки от Минпромторга по технологии 3, %",null,null,"Указывается доля объёма продаж домокомплектов с учетом программы Минпромторга от общего объёма продаж компании за год / квартал по технологии 3.",{"$f":"\"Раскрывается, если в п. \"&$B$142&\" выбрано «да»\"","v":"Раскрывается, если в п. 2.21 выбрано «да»"}]
[null,"2.23","В случае, если Ваша компания выполняет сборку домокомплектов своими силами, укажите себестоимость работ по монтажу домокомплекта по технологии 3 в пересчёте на 1 м², руб./м²",null,null,"Указывается значение средней стоимости сборки домокомплектов по технологии 3, проданных за год, в пересчете на 1 м², в случае, если Ваша компания выполняет сборку домокомплектов своими силами."]
[null,"Раздел 3. Технология 3. Типовые домокомплекты - ТОП-3 по количеству продаж в шт. за год / квартал по технологии 3"]
[null,"3.1","ТОП-1"]
[null,"3.1.1","Домокомплект, который занимает Топ-1 в структуре продаж по технологии 3",null,null,"Указывается ID / Номенклатурный номер / ссылка на проект домокомплекта, который занимает Топ-1 структуре продаж за год / квартал по технологии 3."]
[null,"3.1.2","Доля продаж домокомплекта в общей выручке компании, %",null,null,"Указывается доля продаж домокомплекта в общей выручке компании за год / квартал."]
[null,"3.1.3","Цена домокомплекта, млн руб.",null,null,"Указывается цена домокомплекта в млн руб."]
[null,"3.1.4","Площадь домокомплекта, м²",null,null,"Указывается площадь домокомплекта в м²."]
[null,"3.1.5","Этажность домокомплекта, шт.",null,null,"Указывается количество этажей в домокомплекте в шт."]
[null,"3.1.6","Количество комнат в домокомплекте, шт.",null,null,"Указывается количество комнат в домокомплекте в шт."]
[null,"3.1.7","Наличие отделки домокомплекта ",null,null,"Проставляется отметка ☑ для одного или нескольких значений."]
[null,null,"холодный контур"]
[null,null,"тёплый контур"]
[null,null,"чистовая отделка"]
[null,null,"отделка под ключ"]
[null,"3.2","ТОП-2"]
[null,"3.2.1","Домокомплект, который занимает Топ-1 в структуре продаж по технологии 3",null,null,"Указывается ID / Номенклатурный номер / ссылка на проект домокомплекта, который занимает Топ-1 структуре продаж за год / квартал по технологии 3."]
[null,"3.2.2","Доля продаж домокомплекта в общей выручке компании, %",null,null,"Указывается доля продаж домокомплекта в общей выручке компании за год / квартал."]
[null,"3.2.3","Цена домокомплекта, млн руб.",null,null,"Указывается цена домокомплекта в млн руб."]
[null,"3.2.4","Площадь домокомплекта, м²",null,null,"Указывается площадь домокомплекта в м²."]
[null,"3.2.5","Этажность домокомплекта, шт.",null,null,"Указывается количество этажей в домокомплекте в шт."]
[null,"3.2.6","Количество комнат в домокомплекте, шт.",null,null,"Указывается количество комнат в домокомплекте в шт."]
[null,"3.2.7","Наличие отделки домокомплекта ",null,null,"Проставляется отметка ☑ для одного или нескольких значений."]
[null,null,"холодный контур"]
[null,null,"тёплый контур"]
[null,null,"чистовая отделка"]
[null,null,"отделка под ключ"]
[null,"3.3","ТОП-3"]
[null,"3.3.1","Домокомплект, который занимает Топ-1 в структуре продаж по технологии 3",null,null,"Указывается ID / Номенклатурный номер / ссылка на проект домокомплекта, который занимает Топ-1 структуре продаж за год / квартал по технологии 3."]
[null,"3.3.2","Доля продаж домокомплекта в общей выручке компании, %",null,null,"Указывается доля продаж домокомплекта в общей выручке компании за год / квартал."]
[null,"3.3.3","Цена домокомплекта, млн руб.",null,null,"Указывается цена домокомплекта в млн руб."]
[null,"3.3.4","Площадь домокомплекта, м²",null,null,"Указывается площадь домокомплекта в м²."]
[null,"3.3.5","Этажность домокомплекта, шт.",null,null,"Указывается количество этажей в домокомплекте в шт."]
[null,"3.3.6","Количество комнат в домокомплекте, шт.",null,null,"Указывается количество комнат в домокомплекте в шт."]
[null,"3.3.7","Наличие отделки домокомплекта ",null,null,"Проставляется отметка ☑ для одного или нескольких значений."]
[null,null,"холодный контур"]
[null,null,"тёплый контур"]
[null,null,"чистовая отделка"]
[null,null,"отделка под ключ"]
[null,"Для заполнения анкеты по четвёртой технологии производства, пожалуйста, перейдите на лист \"Технология 4\"."]

{"sheet":"Технология 4","index":3,"n_rows":184,"n_cols":7,"rows_kept":184,"cut":false,"hidden":false,"merged":[[183,1,183,5],[166,1,170,1],[167,3,167,4],[168,3,168,4],[169,3,169,4],[170,3,170,4],[178,1,182,1],[179,3,179,4],[180,3,180,4],[181,3,181,4],[182,3,182,4],[146,1,146,5],[154,1,158,1],[155,3,155,4],[156,3,156,4],[157,3,157,4],[158,3,158,4],[126,1,131,1],[132,3,132,4],[133,1,136,1],[137,1,140,1],[141,1,143,1],[142,3,142,4],[143,3,143,4],[120,1,125,1],[121,3,121,4],[122,3,122,4],[123,3,123,4],[124,3,124,4],[125,3,125,4],[97,3,97,4],[98,3,98,4],[99,1,102,1],[103,3,103,4],[106,1,108,1],[107,3,107,4],[108,3,108,4],[90,1,98,1],[91,3,91,4],[92,3,92,4],[93,3,93,4],[94,3,94,4],[95,3,95,4],[96,3,96,4],[109,1,113,1],[114,1,118,1],[77,1,79,1],[78,3,78,4],[79,3,79,4],[80,1,89,1],[81,3,81,4],[82,3,82,4],[83,3,83,4],[84,3,84,4],[85,3,85,4],[86,3,86,4],[87,3,87,4],[88,3,88,4],[89,3,89,4],[67,1,71,1],[68,3,68,4],[69,3,69,4],[70,3,70,4],[71,3,71,4],[72,1,76,1],[57,1,57,5],[58,1,61,1],[62,1,66,1],[63,3,63,4],[64,3,64,4],[65,3,65,4],[66,3,66,4],[51,1,53,1],[52,3,52,4],[53,3,53,4],[54,1,56,1],[55,3,55,4],[56,3,56,4],[45,3,45,4],[46,1,48,1],[47,3,47,4],[48,3,48,4],[49,3,49,4],[50,3,50,4],[37,1,39,1],[38,3,38,4],[39,3,39,4],[40,1,44,1],[41,3,41,4],[42,3,42,4],[43,3,43,4],[44,3,44,4],[29,3,29,4],[30,3,30,4],[31,1,33,1],[32,3,32,4],[33,3,33,4],[34,1,36,1],[35,3,35,4],[36,3,36,4],[19,3,19,4],[20,3,20,4],[21,1,30,1],[22,3,22,4],[23,3,23,4],[24,3,24,4],[25,3,25,4],[26,3,26,4],[27,3,27,4],[28,3,28,4],[10,1,13,1],[11,3,11,4],[12,3,12,4],[13,3,13,4],[14,1,16,1],[18,3,18,4],[1,1,1,5],[2,1,2,5],[4,1,4,5],[5,3,5,4],[6,1,9,1],[7,3,7,4],[8,3,8,4],[9,3,9,4]]}
[]
[null,"Анкета для опроса компаний производителей домокомплектов\nТехнология 4"]
[null,"Анкета заполняется для каждой технологии производства отдельно.\nДля заполнения анкеты по пятой технологии производства, пожалуйста, перейдите на лист \"Технология 5\"."]
[null,"№ п/п","Наименование параметра","Период - 2022 г.","Период - 1 кв. 2023 г.","Комментарий","Техническая информация"]
[null,"Раздел 1. Технология 4. Производство домокомплектов по технологии 4"]
[null,"1.1","Выберете наименование четвёртой технологии производства, если Ваша компания использует более одной технологии производства",null,null,"Выбирается из выпадающего списка название технологии производства в случае наличия у компании нескольких производств по различным технологиям."]
[null,"1.2","Текущий объём производства домокомплектов по технологии 4:"]
[null,null,"в шт.",null,null,"Указывается значение количества производимых домокомплектов за год / квартал по технологии 4."]
[null,null,"в м²",null,null,"Указывается значение общей площади производимых домокомплектов за год / квартал по технологии 4."]
[null,null,"в млн руб.",null,null,"Указывается значение общей суммы производимых домокомплектов по рыночной цене за год / квартал по технологии 4."]
[null,"1.3","Прогнозный объём производства домокомплектов в 2023 году по технологии 4:"]
[null,null,"в шт.",null,null,"Указывается значение количества производимых домокомплектов на прогнозный 2023 год по технологии 4."]
[null,null,"в м²",null,null,"Указывается значение общей площади производимых домокомплектов на прогнозный 2023 год по технологии 4."]
[null,null,"в млн руб.",null,null,"Указывается значение общей суммы производимых домокомплектов по рыночной цене на прогнозный 2023 год по технологии 4."]
[null,"1.4","Максимальный объём производственных мощностей без переоборудования и модернизации по технологии 4:"]
[null,null,"в шт.",null,null,"Указывается возможное значение количества производимых домокомплектов при условии максимальной возможной загрузки производственных мощностей (без переоборудования и модернизации) в пересчёте на год по технологии 4."]
[null,null,"в м²",null,null,"Указывается возможное значение общей площади производимых домокомплектов при условии максимальной возможной загрузки производственных мощностей (без переоборудования и модернизации) в пересчёте на год по технологии 4."]
[null,"1.5","Средняя себестоимость производства домокомплектов по технологии 4, млн руб.",null,null,"Указывается значение средней себестоимости производства домокомплектов по технологии 4 в млн руб. за год / квартал"]
[null,"1.6","Доля деталей сборной конструкции, произведённых заводским  способом (с использованием станков и оборудования) по технологии 4, %",null,null,"Указывается значение доли деталей сборной конструкции, которые производятся заводским способом (с использованием станков и оборудования) по технологии 4."]
[null,"1.7","Среднее время, необходимое для производства домокомплекта по технологии 4, дней",null,null,"Указывается значение среднего времени производства домокомплекта без учета доработок проекта (только производственный цикл) в днях по технологии 4."]
[null,"1.8","Средний срок сборки домокомплекта по технологии 4, дней",null,null,"Указывается значение среднего времени в днях, необходимого для сборки домокомплекта по технологии 4, без учета доработок проекта."]
[null,"1.9","Основные факторы, ограничивающие потенциальный рост объёмов производства по технологии 4:",null,null,"Проставляется отметка ☑ для одного или нескольких значений (указываются все факторы, актуальные в настоящее время)."]
[null,null,"дефицит или высокая стоимость материалов"]
[null,null,"отсутствие комплектующих к иностранному оборудованию"]
[null,null,"нехватка помещений для производства"]
[null,null,"нехватка рабочей силы"]
[null,null,"отсутствие стабильного спроса на продукцию"]
[null,null,"отсутствие возможности получения льготного кредитования для инвестиций в расширение производственных площадей, замену или модернизацию оборудования и т. д."]
[null,null,"отсутствие возможности получения кредитования для увеличения оборотного капитала"]
[null,null,"отсутствие или нехватка мер государственной поддержки"]
[null,null,"иное",null,null,"Просьба расшифровать."]
[null,"1.10","Есть ли у Вас планы по увеличению объёма производства по технологии 4, предполагающие инвестиции в расширение производственных площадей, замену или модернизацию оборудования и т. д.:",null,null,"Проставляется отметка ◉ для одного из значений."]
[null,null,"да"]
[null,null,"нет"]
[null,"1.11","Готовы ли Вы пересмотреть планы по увеличению объёма производства, в случае, если государством будут разработаны программы льготного кредитования для этих целей:",null,null,"Проставляется отметка ◉ для одного из значений.",{"$f":"\"Раскрывается, если в п. \"&$B$32&\" выбрано «нет»\"","v":"Раскрывается, если в п. 1.10 выбрано «нет»"}]
[null,null,"да",null,null,null,{"$f":"\"Раскрывается, если в п. \"&$B$32&\" выбрано «нет»\"","v":"Раскрывается, если в п. 1.10 выбрано «нет»"}]
[null,null,"нет",null,null,null,"Раскрывается, если в п. 1.10 выбрано «нет»"]
[null,"1.12","На сколько планируется увеличить объём производства по отношению к текущему объёму производства по технологии 4:",null,null,null,{"$f":"\"Раскрывается, если в п. \"&$B$32&\" выбрано «да»\"","v":"Раскрывается, если в п. 1.10 выбрано «да»"}]
[null,null,"в шт.",null,null,"Указывается потенциальный прирост общей площади производимых домокомплектов по технологии 4 в пересчете на год по отношению к текущему объёму производства за год при реализации планов по расширению производственных площадей.",{"$f":"\"Раскрывается, если в п. \"&$B$32&\" выбрано «да»\"","v":"Раскрывается, если в п. 1.10 выбрано «да»"}]
[null,null,"в м²",null,null,"Указывается потенциальный прирост количества производимых домокомплектов по технологии 4 в пересчете на год по отношению к текущему объёму производства за год при реализации планов по расширению производственных площадей.","Раскрывается, если в п. 1.10 выбрано «да»"]
[null,"1.13","Из каких источников финансирования планируется реализовать указанные планы по увеличению объёма производства:",null,null,"Проставляется отметка ☑ для одного или нескольких значений источников финансирования для целей, указанных в п. 1.10.","Раскрывается, если в п. 1.10 выбрано «да»"]
[null,null,"собственные средства",null,null,null,"Раскрывается, если в п. 1.10 выбрано «да»"]
[null,null,"кредитные средства",null,null,null,"Раскрывается, если в п. 1.10 выбрано «да»"]
[null,null,"субсидии",null,null,null,"Раскрывается, если в п. 1.10 выбрано «да»"]
[null,null,"иное",null,null,"Просьба расшифровать.","Раскрывается, если в п. 1.10 выбрано «да»"]
[null,"1.14","Какой объём кредитных средств требуется для реализации планов по увеличению объёма производства, млн руб.",null,null,"Указывается приблизительная оценка объёма кредитных средств, которые компания планирует привлечь на цели, указанные в п. 1.10.",{"$f":"\"Раскрывается, если в п. \"&$B$41&\" выбрано «кредитные средства»\"","v":"Раскрывается, если в п. 1.13 выбрано «кредитные средства»"}]
[null,"1.15","Возникает ли у Вас потребность в привлечении кредитных средств для увеличения оборотного капитала:",null,null,"Проставляется отметка ◉ для одного из значений."]
[null,null,"да"]
[null,null,"нет"]
[null,"1.16","Банки-партнёры по привлечению кредитных средств для инвестиций в увеличение объёма производства по технологии 4",null,null,"Указываются все банки-партнёры по привлечению кредитных средств для инвестиций в увеличение объёма производства по технологии 4."]
[null,"1.17","Доля оборудования иностранного производства, используемого в изготовлении домокомплектов по технологии 4",null,null,"Указывается оценка доли использования в производстве домокомплектов по технологии 4 иностранного оборудования от общего числа оборудования."]
[null,"1.18","Какие проблемы возникают при эксплуатации и содержании оборудования, используемого в производстве по технологии 4:"]
[null,null,"иностранного производства",null,null,"Просьба заполнить информацией о проблемах, возникающих при эксплуатации оборудования иностранного производства.",{"$f":"\"Раскрывается, если в п. \"&$B$51&\" внесено значение больше, чем 0%\"","v":"Раскрывается, если в п. 1.17 внесено значение больше, чем 0%"}]
[null,null,"российского производства",null,null,"Просьба заполнить информацией о проблемах, возникающих при эксплуатации оборудования российского производства.",{"$f":"\"Раскрывается, если в п. \"&$B$51&\" внесено значение больше, чем 100%\"","v":"Раскрывается, если в п. 1.17 внесено значение больше, чем 100%"}]
[null,"1.19","Планируется ли замена иностранного оборудования на российские аналоги:",null,null,"Проставляется отметка ◉ для одного из значений.",{"$f":"\"Раскрывается, если в п. \"&$B$51&\" внесено значение больше, чем 0%\"","v":"Раскрывается, если в п. 1.17 внесено значение больше, чем 0%"}]
[null,null,"да",null,null,null,"Раскрывается, если в п. 1.17 внесено значение больше, чем 0%"]
[null,null,"нет",null,null,null,"Раскрывается, если в п. 1.17 внесено значение больше, чем 0%"]
[null,"Раздел 2. Технология 4. Реализация и структура продаж домокомплектов по технологии 4"]
[null,"2.1","Текущий объём продаж домокомплектов по технологии 4:"]
[null,null,"в шт.",null,null,"Указывается значение количества продаваемых домокомплектов за год / квартал по технологии 4."]
[null,null,"в м²",null,null,"Указывается значение общей площади продаваемых домокомплектов за год / квартал по технологии 4."]
[null,null,"в млн руб.",null,null,"Указывается значение общей суммы продаваемых домокомплектов по рыночной цене за год / квартал по технологии 4."]
[null,"2.2","Каналы продаж домокомплектов по технологии 4:",null,null,"Проставляется отметка ☑ для одного или нескольких значений."]
[null,null,"прямой договор между производителем и заказчиком"]
[null,null,"дистрибьютор"]
[null,null,"дилерская сеть"]
[null,null,"Ваш вариант",null,null,"Просьба расшифровать."]
[null,"2.3","Варианты сборки домокомплекта по технологии 4:",null,null,"Проставляется отметка ☑ для одного или нескольких значений."]
[null,null,"собственная сборка"]
[null,null,"сборка аккредитованным подрядчиком"]
[null,null,"сборка неаккредитованным подрядчиком"]
[null,null,"самостоятельная сборка клиентом"]
[null,"2.4","Распределение вариантов сборки домокомплектов по долям по технологии 4, %:",null,null,"Если в п. 2.3 указано больше 1 ответа, то укажите распределение вариантов сборки домокомплектов по долям от общего объёма продаж в шт. за год / квартал по технологии 4.",{"$f":"\"Раскрывается, если в п. \"&$B$68&\" отмечено более 1 варианта ответа\"","v":"Раскрывается, если в п. 2.3 отмечено более 1 варианта ответа"}]
[null,null,"собственная сборка, %",null,null,null,{"$f":"\"Раскрывается, если в п. \"&$B$68&\" выбрано «\"&C69&\"»\"","v":"Раскрывается, если в п. 2.3 выбрано «собственная сборка»"}]
[null,null,"сборка аккредитованным подрядчиком, %",null,null,null,{"$f":"\"Раскрывается, если в п. \"&$B$68&\" выбрано «\"&C70&\"»\"","v":"Раскрывается, если в п. 2.3 выбрано «сборка аккредитованным подрядчиком»"}]
[null,null,"сборка неаккредитованным подрядчиком, %",null,null,null,"Раскрывается, если в п. 2.3 выбрано «сборка неаккредитованным подрядчиком»"]
[null,null,"самостоятельная сборка клиентом, %",null,null,null,"Раскрывается, если в п. 2.3 выбрано «самостоятельная сборка клиентом»"]
[null,"2.5","Типы заключаемых с клиентами договоров по технологии 4:",null,null,"Проставляется отметка ☑ для одного или нескольких значений."]
[null,null,"договор купли-продажи домокомплекта"]
[null,null,"договор подряда на строительство дома из домокомплекта"]
[null,"2.6","Какие из перечисленных компонентов могут быть включены в договор купли-продажи по технологии 4:",null,null,"Проставляется отметка ☑ для одного или нескольких значений.",{"$f":"\"Раскрывается, если в п. \"&$B$78&\" выбрано «\"&$C$79&\"»\"","v":"Раскрывается, если в п. 2.5 выбрано «договор купли-продажи домокомплекта»"}]
[null,null,"каркас",null,null,null,{"$f":"\"Раскрывается, если в п. \"&$B$78&\" выбрано «\"&$C$79&\"»\"","v":"Раскрывается, если в п. 2.5 выбрано «договор купли-продажи домокомплекта»"}]
[null,null,"стены и фасад",null,null,null,"Раскрывается, если в п. 2.5 выбрано «договор купли-продажи домокомплекта»"]
[null,null,"межкомнатные перекрытия",null,null,null,"Раскрывается, если в п. 2.5 выбрано «договор купли-продажи домокомплекта»"]
[null,null,"крыша",null,null,null,"Раскрывается, если в п. 2.5 выбрано «договор купли-продажи домокомплекта»"]
[null,null,"окна и двери",null,null,null,"Раскрывается, если в п. 2.5 выбрано «договор купли-продажи домокомплекта»"]
[null,null,"фундамент",null,null,null,"Раскрывается, если в п. 2.5 выбрано «договор купли-продажи домокомплекта»"]
[null,null,"дом с тёплым контуром",null,null,null,"Раскрывается, если в п. 2.5 выбрано «договор купли-продажи домокомплекта»"]
[null,null,"дом с чистовой отделкой",null,null,null,"Раскрывается, если в п. 2.5 выбрано «договор купли-продажи домокомплекта»"]
[null,null,"дом с отделкой под ключ",null,null,null,"Раскрывается, если в п. 2.5 выбрано «договор купли-продажи домокомплекта»"]
[null,"2.7","Какие работы могут быть включены в договор подряда по технологии 4:",null,null,"Проставляется отметка ☑ для одного или нескольких значений.",{"$f":"\"Раскрывается, если в п. \"&$B$78&\" выбрано «\"&$C$80&\"»\"","v":"Раскрывается, если в п. 2.5 выбрано «договор подряда на строительство дома из домокомплекта»"}]
[null,null,"сборка каркаса",null,null,null,{"$f":"\"Раскрывается, если в п. \"&$B$78&\" выбрано «\"&$C$80&\"»\"","v":"Раскрывается, если в п. 2.5 выбрано «договор подряда на строительство дома из домокомплекта»"}]
[null,null,"установка крыши",null,null,null,"Раскрывается, если в п. 2.5 выбрано «договор подряда на строительство дома из домокомплекта»"]
[null,null,"установка окон и дверей",null,null,null,"Раскрывается, если в п. 2.5 выбрано «договор подряда на строительство дома из домокомплекта»"]
[null,null,"постройка фундамента",null,null,null,"Раскрывается, если в п. 2.5 выбрано «договор подряда на строительство дома из домокомплекта»"]
[null,null,"обеспечение дома инженерными системами",null,null,null,"Раскрывается, если в п. 2.5 выбрано «договор подряда на строительство дома из домокомплекта»"]
[null,null,"обеспечение дома тёплым контуром",null,null,null,"Раскрывается, если в п. 2.5 выбрано «договор подряда на строительство дома из домокомплекта»"]
[null,null,"чистовая отделка дома",null,null,null,"Раскрывается, если в п. 2.5 выбрано «договор подряда на строительство дома из домокомплекта»"]
[null,null,"отделка дома под ключ",null,null,null,"Раскрывается, если в п. 2.5 выбрано «договор подряда на строительство дома из домокомплекта»"]
[null,"2.8","Доля реализации домокомплектов по типовому проекту / по типовому проекту с минимальными изменениями / по индивидуальному проекту по технологии 4, %:"]
[null,null,"по типовому проекту (без изменений в проекте), %",null,null,"Указывается доля реализованных домокомплектов по типовому проекту в общем объёме реализации в шт. за год / квартал по технологии 4."]
[null,null,"по типовому проекту с минимальными изменениями (изменения проекта повлекли изменение цены не более чем на 10%), %",null,null,"Указывается доля реализованных домокомплектов, изменения в проект которых привели к изменению цены не более чем на 10%, в общем объёме реализации в шт. за год / квартал по технологии 4."]
[null,null,"по индивидуальному проекту (изменения проекта повлекли изменение цены более чем на 10%), %",null,null,"Указывается доля реализованных домокомплектов, изменения в проект которых привели к изменению цены более чем на 10%, в общем объёме реализации в шт. за год / квартал по технологии 4."]
[null,"2.9","Средняя стоимость доставки домокомплекта в пересчете на 1 км по технологии 4, руб./км ",null,null,"Указывается значение средней стоимости доставки домокомплектов, проданных за год, в пересчете на 1 км по технологии 4."]
[null,"2.10","Регионы продажи домокомплектов, и соответствующая им доля в общем объёме реализации в % по технологии 4",null,null,"Указываются все регионы, в которые были проданы домокомплекты за год / квартал по технологии 4, и их доля в общем объёме продаж по технологии 4 соответствующего периода, которая приходится на эти регионы."]
[null,"2.11","В случае, если Вы проводите оценку потенциального спроса на домокомплекты в регионах присутствия, укажите значение спроса в регионах присутствия в год, шт.",null,null,"Указывается оценка потенциального спроса на домокомплекты в регионах присутствия в шт. в год, в случае, если такая оценка производится."]
[null,"2.12","Планируете ли Вы расширение / увеличение регионов продаж домокомплектов в 2023 году по технологии 4:",null,null,"Проставляется отметка ◉ для одного из значений."]
[null,null,"да"]
[null,null,"нет"]
[null,"2.13","Доля продаж домокомплектов с тёплым контуром / с чистовой отделкой / под ключ по технологии 4, %:"]
[null,null,"с холодным контуром, %",null,null,"Указывается доля количества заключенных договоров продажи домокомплектов с холодным контуром от общего объёма продаж компании в шт. за год / квартал по технологии 4."]
[null,null,"с тёплым контуром, %",null,null,"Указывается доля количества заключенных договоров продажи домокомплектов с тёплым контуром от общего объёма продаж компании в шт. за год / квартал по технологии 4."]
[null,null,"чистовой отделкой, %",null,null,"Указывается доля количества заключенных договоров продажи домокомплектов с чистовой отделкой от общего объёма продаж компании в шт. за год / квартал по технологии 4."]
[null,null,"отделкой под ключ, %",null,null,"Указывается доля количества заключенных договоров продажи домокомплектов отделкой под ключ от общего объёма продаж компании в шт. за год / квартал по технологии 4."]
[null,"2.14","Средняя стоимость реализуемых домокомплектов с тёплым контуром / с чистовой отделкой / под ключ, млн руб. по технологии 4:"]
[null,null,"с холодным контуром, млн руб.",null,null,"Указывается значение средней стоимости проданных за год домокомплектов без отделки, инженерного оборудования и утепления в млн руб. за год / квартал по технологии 4."]
[null,null,"с тёплым контуром, млн руб.",null,null,"Указывается значение средней стоимости проданных за год домокомплектов без отделки и инженерного оборудования в млн руб. за год / квартал по технологии 4."]
[null,null,"чистовой отделкой, млн руб.",null,null,"Указывается значение средней стоимости проданных за год домокомплектов с чистовой отделкой и инженерным оборудованием в млн руб. за год / квартал по технологии 4."]
[null,null,"отделкой под ключ, включая инженерные сети, млн руб.",null,null,"Указывается значение средней стоимости проданных за год домокомплектов с отделкой под ключ и инженерным оборудованием в млн руб. за год / квартал по технологии 4."]
[null,"2.15","Доля продаж с привлечением ипотечного кредита по технологии 4, %",null,null,"Указывается значение отношения количества заключенных договоров, оплата которых производится с привлечением кредитных средств, к общему количеству заключенных договоров за год / квартал по технологии 4."]
[null,"2.16","Применение льготных ипотечных программ по технологии 4:",null,null,"Проставляется отметка ☑ для одного или нескольких значений.\nУказываются льготные ипотечные программы, которые используют покупатели домокомплектов по технологии 4."]
[null,null,"льготная ипотека"]
[null,null,"семейная ипотека"]
[null,null,"сельская ипотека"]
[null,null,"ИТ-ипотека"]
[null,null,"дальневосточная ипотека"]
[null,"2.17","Распределение доли льготных ипотечных программ по технологии 4, %:",null,null,null,{"$f":"\"Раскрывается, если в п. \"&$B$121&\" выбран по крайней мере 1 вариант ответа\"","v":"Раскрывается, если в п. 2.16 выбран по крайней мере 1 вариант ответа"}]
[null,null,"льготная ипотека, %",null,null,"Указывается значение отношения количества заключенных договоров с применением программы льготной ипотеки к общему количеству заключенных договоров за год / квартал по технологии 4.",{"$f":"\"Раскрывается, если в п. \"&$B$121&\" выбрано «\"&C122&\"»\"","v":"Раскрывается, если в п. 2.16 выбрано «льготная ипотека»"}]
[null,null,"семейная ипотека, %",null,null,"Указывается значение отношения количества заключенных договоров с применением программы семейной ипотеки к общему количеству заключенных договоров за год / квартал по технологии 4.",{"$f":"\"Раскрывается, если в п. \"&$B$121&\" выбрано «\"&C123&\"»\"","v":"Раскрывается, если в п. 2.16 выбрано «семейная ипотека»"}]
[null,null,"сельская ипотека, %",null,null,"Указывается значение отношения количества заключенных договоров с применением программы сельской ипотеки к общему количеству заключенных договоров за год / квартал по технологии 4.",{"$f":"\"Раскрывается, если в п. \"&$B$121&\" выбрано «\"&C124&\"»\"","v":"Раскрывается, если в п. 2.16 выбрано «сельская ипотека»"}]
[null,null,"ИТ-ипотека, %",null,null,"Указывается значение отношения количества заключенных договоров с применением программы ИТ-ипотеки к общему количеству заключенных договоров за год / квартал по технологии 4.",{"$f":"\"Раскрывается, если в п. \"&$B$121&\" выбрано «\"&C125&\"»\"","v":"Раскрывается, если в п. 2.16 выбрано «ИТ-ипотека»"}]
[null,null,"дальневосточная ипотека, %",null,null,"Указывается значение отношения количества заключенных договоров с применением программы дальневосточной ипотеки к общему количеству заключенных договоров за год / квартал. по технологии 4",{"$f":"\"Раскрывается, если в п. \"&$B$121&\" выбрано «\"&C126&\"»\"","v":"Раскрывается, если в п. 2.16 выбрано «дальневосточная ипотека»"}]
[null,"2.18","Банки-партнёры по ипотечному кредитованию при реализации домокомплектов по технологии 4",null,null,"Указываются все банки-партнёры по ипотечному кредитованию при реализации домокомплектов по технологии 4."]
[null,"2.19","Распределение доли продаж домокомплектов, реализованных по договору купли-продажи, по ценовым сегментам по технологии 4, %:",null,null,null,{"$f":"\"Раскрывается, если в п. \"&$B$78&\" выбрано «\"&$C$79&\"»\"","v":"Раскрывается, если в п. 2.5 выбрано «договор купли-продажи домокомплекта»"}]
[null,null,"стоимостью менее 3,5 млн руб., %",null,null,"Указывается доля продаж домокомплектов, реализованных по договору купли-продажи, стоимостью менее 3,5 млн руб. от общего количества продаж домокомплектов в шт. за год / квартал по технологии 4.","Раскрывается, если в п. 2.5 выбрано «договор купли-продажи домокомплекта»"]
[null,null,"стоимостью от 3,5 млн руб. до 7 млн руб., %",null,null,"Указывается доля продаж домокомплектов, реализованных по договору купли-продажи, стоимостью от 3,5 млн руб. до 7 млн руб. от общего количества продаж домокомплектов в шт. за год / квартал по технологии 4.","Раскрывается, если в п. 2.5 выбрано «договор купли-продажи домокомплекта»"]
[null,null,"стоимостью более 7 млн руб., %",null,null,"Указывается доля продаж домокомплектов, реализованных по договору купли-продажи, стоимостью более 7 млн руб. от общего количества продаж домокомплектов в шт. за год / квартал по технологии 4.","Раскрывается, если в п. 2.5 выбрано «договор купли-продажи домокомплекта»"]
[null,"2.20","Распределение доли продаж домокомплектов, реализованных по договору подряда, по ценовым сегментам по технологии 4, %:",null,null,null,{"$f":"\"Раскрывается, если в п. \"&$B$78&\" выбрано «\"&$C$80&\"»\"","v":"Раскрывается, если в п. 2.5 выбрано «договор подряда на строительство дома из домокомплекта»"}]
[null,null,"стоимостью менее 3,5 млн руб., %",null,null,"Указывается доля продаж домокомплектов, реализованных по договору подряда, стоимостью менее 3,5 млн руб. от общего количества продаж домокомплектов в шт. за год / квартал по технологии 4.",{"$f":"\"Раскрывается, если в п. \"&$B$78&\" выбрано «\"&$C$80&\"»\"","v":"Раскрывается, если в п. 2.5 выбрано «договор подряда на строительство дома из домокомплекта»"}]
[null,null,"стоимостью от 3,5 млн руб. до 7 млн руб., %",null,null,"Указывается доля продаж домокомплектов, реализованных по договору подряда, стоимостью от 3,5 млн руб. до 7 млн руб. от общего количества продаж домокомплектов в шт. за год / квартал по технологии 4.","Раскрывается, если в п. 2.5 выбрано «договор подряда на строительство дома из домокомплекта»"]
[null,null,"стоимостью более 7 млн руб., %",null,null,"Указывается доля продаж домокомплектов, реализованных по договору подряда, стоимостью более 7 млн руб. от общего количества продаж домокомплектов в шт. за год / квартал по технологии 4.","Раскрывается, если в п. 2.5 выбрано «договор подряда на строительство дома из домокомплекта»"]
[null,"2.21","Являетесь ли Вы участником программы Минпромторга на получение субсидии для компенсации 10%-скидки:",null,null,"Проставляется отметка ◉ для одного из значений. Ссылка на постановление Правительства РФ о предоставлении субсидии: http://government.ru/docs/all/144380/"]
[null,null,"да"]
[null,null,"нет"]
[null,"2.22","Доля продаж домокомплектов с применением скидки от Минпромторга по технологии 4, %",null,null,"Указывается доля объёма продаж домокомплектов с учетом программы Минпромторга от общего объёма продаж компании за год / квартал по технологии 4.",{"$f":"\"Раскрывается, если в п. \"&$B$142&\" выбрано «да»\"","v":"Раскрывается, если в п. 2.21 выбрано «да»"}]
[null,"2.23","В случае, если Ваша компания выполняет сборку домокомплектов своими силами, укажите себестоимость работ по монтажу домокомплекта по технологии 4 в пересчёте на 1 м², руб./м²",null,null,"Указывается значение средней стоимости сборки домокомплектов по технологии 4, проданных за год, в пересчете на 1 м², в случае, если Ваша компания выполняет сборку домокомплектов своими силами."]
[null,"Раздел 3. Технология 4. Типовые домокомплекты - ТОП-3 по количеству продаж в шт. за год / квартал по технологии 4"]
[null,"3.1","ТОП-1"]
[null,"3.1.1","Домокомплект, который занимает Топ-1 в структуре продаж по технологии 4",null,null,"Указывается ID / Номенклатурный номер / ссылка на проект домокомплекта, который занимает Топ-1 структуре продаж за год / квартал по технологии 4."]
[null,"3.1.2","Доля продаж домокомплекта в общей выручке компании, %",null,null,"Указывается доля продаж домокомплекта в общей выручке компании за год / квартал."]
[null,"3.1.3","Цена домокомплекта, млн руб.",null,null,"Указывается цена домокомплекта в млн руб."]
[null,"3.1.4","Площадь домокомплекта, м²",null,null,"Указывается площадь домокомплекта в м²."]
[null,"3.1.5","Этажность домокомплекта, шт.",null,null,"Указывается количество этажей в домокомплекте в шт."]
[null,"3.1.6","Количество комнат в домокомплекте, шт.",null,null,"Указывается количество комнат в домокомплекте в шт."]
[null,"3.1.7","Наличие отделки домокомплекта ",null,null,"Проставляется отметка ☑ для одного или нескольких значений."]
[null,null,"холодный контур"]
[null,null,"тёплый контур"]
[null,null,"чистовая отделка"]
[null,null,"отделка под ключ"]
[null,"3.2","ТОП-2"]
[null,"3.2.1","Домокомплект, который занимает Топ-1 в структуре продаж по технологии 4",null,null,"Указывается ID / Номенклатурный номер / ссылка на проект домокомплекта, который занимает Топ-1 структуре продаж за год / квартал по технологии 4."]
[null,"3.2.2","Доля продаж домокомплекта в общей выручке компании, %",null,null,"Указывается доля продаж домокомплекта в общей выручке компании за год / квартал."]
[null,"3.2.3","Цена домокомплекта, млн руб.",null,null,"Указывается цена домокомплекта в млн руб."]
[null,"3.2.4","Площадь домокомплекта, м²",null,null,"Указывается площадь домокомплекта в м²."]
[null,"3.2.5","Этажность домокомплекта, шт.",null,null,"Указывается количество этажей в домокомплекте в шт."]
[null,"3.2.6","Количество комнат в домокомплекте, шт.",null,null,"Указывается количество комнат в домокомплекте в шт."]
[null,"3.2.7","Наличие отделки домокомплекта ",null,null,"Проставляется отметка ☑ для одного или нескольких значений."]
[null,null,"холодный контур"]
[null,null,"тёплый контур"]
[null,null,"чистовая отделка"]
[null,null,"отделка под ключ"]
[null,"3.3","ТОП-3"]
[null,"3.3.1","Домокомплект, который занимает Топ-1 в структуре продаж по технологии 4",null,null,"Указывается ID / Номенклатурный номер / ссылка на проект домокомплекта, который занимает Топ-1 структуре продаж за год / квартал по технологии 4."]
[null,"3.3.2","Доля продаж домокомплекта в общей выручке компании, %",null,null,"Указывается доля продаж домокомплекта в общей выручке компании за год / квартал."]
[null,"3.3.3","Цена домокомплекта, млн руб.",null,null,"Указывается цена домокомплекта в млн руб."]
[null,"3.3.4","Площадь домокомплекта, м²",null,null,"Указывается площадь домокомплекта в м²."]
[null,"3.3.5","Этажность домокомплекта, шт.",null,null,"Указывается количество этажей в домокомплекте в шт."]
[null,"3.3.6","Количество комнат в домокомплекте, шт.",null,null,"Указывается количество комнат в домокомплекте в шт."]
[null,"3.3.7","Наличие отделки домокомплекта ",null,null,"Проставляется отметка ☑ для одного или нескольких значений."]
[null,null,"холодный контур"]
[null,null,"тёплый контур"]
[null,null,"чистовая отделка"]
[null,null,"отделка под ключ"]
[null,"Для заполнения анкеты по пятой технологии производства, пожалуйста, перейдите на лист \"Технология 5\"."]

{"sheet":"Технология 5","index":4,"n_rows":183,"n_cols":7,"rows_kept":183,"cut":false,"hidden":false,"merged":[[166,1,170,1],[167,3,167,4],[168,3,168,4],[169,3,169,4],[170,3,170,4],[178,1,182,1],[179,3,179,4],[180,3,180,4],[181,3,181,4],[182,3,182,4],[146,1,146,5],[154,1,158,1],[155,3,155,4],[156,3,156,4],[157,3,157,4],[158,3,158,4],[126,1,131,1],[132,3,132,4],[133,1,136,1],[137,1,140,1],[141,1,143,1],[142,3,142,4],[143,3,143,4],[120,1,125,1],[121,3,121,4],[122,3,122,4],[123,3,123,4],[124,3,124,4],[125,3,125,4],[97,3,97,4],[98,3,98,4],[99,1,102,1],[103,3,103,4],[106,1,108,1],[107,3,107,4],[108,3,108,4],[90,1,98,1],[91,3,91,4],[92,3,92,4],[93,3,93,4],[94,3,94,4],[95,3,95,4],[96,3,96,4],[109,1,113,1],[114,1,118,1],[77,1,79,1],[78,3,78,4],[79,3,79,4],[80,1,89,1],[81,3,81,4],[82,3,82,4],[83,3,83,4],[84,3,84,4],[85,3,85,4],[86,3,86,4],[87,3,87,4],[88,3,88,4],[89,3,89,4],[67,1,71,1],[68,3,68,4],[69,3,69,4],[70,3,70,4],[71,3,71,4],[72,1,76,1],[57,1,57,5],[58,1,61,1],[62,1,66,1],[63,3,63,4],[64,3,64,4],[65,3,65,4],[66,3,66,4],[51,1,53,1],[52,3,52,4],[53,3,53,4],[54,1,56,1],[55,3,55,4],[56,3,56,4],[45,3,45,4],[46,1,48,1],[47,3,47,4],[48,3,48,4],[49,3,49,4],[50,3,50,4],[37,1,39,1],[38,3,38,4],[39,3,39,4],[40,1,44,1],[41,3,41,4],[42,3,42,4],[43,3,43,4],[44,3,44,4],[29,3,29,4],[30,3,30,4],[31,1,33,1],[32,3,32,4],[33,3,33,4],[34,1,36,1],[35,3,35,4],[36,3,36,4],[19,3,19,4],[20,3,20,4],[21,1,30,1],[22,3,22,4],[23,3,23,4],[24,3,24,4],[25,3,25,4],[26,3,26,4],[27,3,27,4],[28,3,28,4],[10,1,13,1],[11,3,11,4],[12,3,12,4],[13,3,13,4],[14,1,16,1],[18,3,18,4],[1,1,1,5],[2,1,2,5],[4,1,4,5],[5,3,5,4],[6,1,9,1],[7,3,7,4],[8,3,8,4],[9,3,9,4]]}
[]
[null,"Анкета для опроса компаний производителей домокомплектов\nТехнология 5"]
[null,"Анкета заполняется для каждой технологии производства отдельно."]
[null,"№ п/п","Наименование параметра","Период - 2022 г.","Период - 1 кв. 2023 г.","Комментарий","Техническая информация"]
[null,"Раздел 1. Технология 5. Производство домокомплектов по технологии 5"]
[null,"1.1","Выберете наименование третьей технологии производства, если Ваша компания использует более одной технологии производства",null,null,"Выбирается из выпадающего списка название технологии производства в случае наличия у компании нескольких производств по различным технологиям."]
[null,"1.2","Текущий объём производства домокомплектов по технологии 5:"]
[null,null,"в шт.",null,null,"Указывается значение количества производимых домокомплектов за год / квартал по технологии 5."]
[null,null,"в м²",null,null,"Указывается значение общей площади производимых домокомплектов за год / квартал по технологии 5."]
[null,null,"в млн руб.",null,null,"Указывается значение общей суммы производимых домокомплектов по рыночной цене за год / квартал по технологии 5."]
[null,"1.3","Прогнозный объём производства домокомплектов в 2023 году по технологии 5:"]
[null,null,"в шт.",null,null,"Указывается значение количества производимых домокомплектов на прогнозный 2023 год по технологии 5."]
[null,null,"в м²",null,null,"Указывается значение общей площади производимых домокомплектов на прогнозный 2023 год по технологии 5."]
[null,null,"в млн руб.",null,null,"Указывается значение общей суммы производимых домокомплектов по рыночной цене на прогнозный 2023 год по технологии 5."]
[null,"1.4","Максимальный объём производственных мощностей без переоборудования и модернизации по технологии 5:"]
[null,null,"в шт.",null,null,"Указывается возможное значение количества производимых домокомплектов при условии максимальной возможной загрузки производственных мощностей (без переоборудования и модернизации) в пересчёте на год по технологии 5."]
[null,null,"в м²",null,null,"Указывается возможное значение общей площади производимых домокомплектов при условии максимальной возможной загрузки производственных мощностей (без переоборудования и модернизации) в пересчёте на год по технологии 5."]
[null,"1.5","Средняя себестоимость производства домокомплектов по технологии 5, млн руб.",null,null,"Указывается значение средней себестоимости производства домокомплектов по технологии 5 в млн руб. за год / квартал"]
[null,"1.6","Доля деталей сборной конструкции, произведённых заводским  способом (с использованием станков и оборудования) по технологии 5, %",null,null,"Указывается значение доли деталей сборной конструкции, которые производятся заводским способом (с использованием станков и оборудования) по технологии 5."]
[null,"1.7","Среднее время, необходимое для производства домокомплекта по технологии 5, дней",null,null,"Указывается значение среднего времени производства домокомплекта без учета доработок проекта (только производственный цикл) в днях по технологии 5."]
[null,"1.8","Средний срок сборки домокомплекта по технологии 5, дней",null,null,"Указывается значение среднего времени в днях, необходимого для сборки домокомплекта по технологии 5, без учета доработок проекта."]
[null,"1.9","Основные факторы, ограничивающие потенциальный рост объёмов производства по технологии 5:",null,null,"Проставляется отметка ☑ для одного или нескольких значений (указываются все факторы, актуальные в настоящее время)."]
[null,null,"дефицит или высокая стоимость материалов"]
[null,null,"отсутствие комплектующих к иностранному оборудованию"]
[null,null,"нехватка помещений для производства"]
[null,null,"нехватка рабочей силы"]
[null,null,"отсутствие стабильного спроса на продукцию"]
[null,null,"отсутствие возможности получения льготного кредитования для инвестиций в расширение производственных площадей, замену или модернизацию оборудования и т. д."]
[null,null,"отсутствие возможности получения кредитования для увеличения оборотного капитала"]
[null,null,"отсутствие или нехватка мер государственной поддержки"]
[null,null,"иное",null,null,"Просьба расшифровать."]
[null,"1.10","Есть ли у Вас планы по увеличению объёма производства по технологии 5, предполагающие инвестиции в расширение производственных площадей, замену или модернизацию оборудования и т. д.:",null,null,"Проставляется отметка ◉ для одного из значений."]
[null,null,"да"]
[null,null,"нет"]
[null,"1.11","Готовы ли Вы пересмотреть планы по увеличению объёма производства, в случае, если государством будут разработаны программы льготного кредитования для этих целей:",null,null,"Проставляется отметка ◉ для одного из значений.",{"$f":"\"Раскрывается, если в п. \"&$B$32&\" выбрано «нет»\"","v":"Раскрывается, если в п. 1.10 выбрано «нет»"}]
[null,null,"да",null,null,null,{"$f":"\"Раскрывается, если в п. \"&$B$32&\" выбрано «нет»\"","v":"Раскрывается, если в п. 1.10 выбрано «нет»"}]
[null,null,"нет",null,null,null,"Раскрывается, если в п. 1.10 выбрано «нет»"]
[null,"1.12","На сколько планируется увеличить объём производства по отношению к текущему объёму производства по технологии 5:",null,null,null,{"$f":"\"Раскрывается, если в п. \"&$B$32&\" выбрано «да»\"","v":"Раскрывается, если в п. 1.10 выбрано «да»"}]
[null,null,"в шт.",null,null,"Указывается потенциальный прирост общей площади производимых домокомплектов по технологии 5 в пересчете на год по отношению к текущему объёму производства за год при реализации планов по расширению производственных площадей.",{"$f":"\"Раскрывается, если в п. \"&$B$32&\" выбрано «да»\"","v":"Раскрывается, если в п. 1.10 выбрано «да»"}]
[null,null,"в м²",null,null,"Указывается потенциальный прирост количества производимых домокомплектов по технологии 5 в пересчете на год по отношению к текущему объёму производства за год при реализации планов по расширению производственных площадей.","Раскрывается, если в п. 1.10 выбрано «да»"]
[null,"1.13","Из каких источников финансирования планируется реализовать указанные планы по увеличению объёма производства:",null,null,"Проставляется отметка ☑ для одного или нескольких значений источников финансирования для целей, указанных в п. 1.10.","Раскрывается, если в п. 1.10 выбрано «да»"]
[null,null,"собственные средства",null,null,null,"Раскрывается, если в п. 1.10 выбрано «да»"]
[null,null,"кредитные средства",null,null,null,"Раскрывается, если в п. 1.10 выбрано «да»"]
[null,null,"субсидии",null,null,null,"Раскрывается, если в п. 1.10 выбрано «да»"]
[null,null,"иное",null,null,"Просьба расшифровать.","Раскрывается, если в п. 1.10 выбрано «да»"]
[null,"1.14","Какой объём кредитных средств требуется для реализации планов по увеличению объёма производства, млн руб.",null,null,"Указывается приблизительная оценка объёма кредитных средств, которые компания планирует привлечь на цели, указанные в п. 1.10.",{"$f":"\"Раскрывается, если в п. \"&$B$41&\" выбрано «кредитные средства»\"","v":"Раскрывается, если в п. 1.13 выбрано «кредитные средства»"}]
[null,"1.15","Возникает ли у Вас потребность в привлечении кредитных средств для увеличения оборотного капитала:",null,null,"Проставляется отметка ◉ для одного из значений."]
[null,null,"да"]
[null,null,"нет"]
[null,"1.16","Банки-партнёры по привлечению кредитных средств для инвестиций в увеличение объёма производства по технологии 5",null,null,"Указываются все банки-партнёры по привлечению кредитных средств для инвестиций в увеличение объёма производства по технологии 5."]
[null,"1.17","Доля оборудования иностранного производства, используемого в изготовлении домокомплектов по технологии 5",null,null,"Указывается оценка доли использования в производстве домокомплектов по технологии 5 иностранного оборудования от общего числа оборудования."]
[null,"1.18","Какие проблемы возникают при эксплуатации и содержании оборудования, используемого в производстве по технологии 5:"]
[null,null,"иностранного производства",null,null,"Просьба заполнить информацией о проблемах, возникающих при эксплуатации оборудования иностранного производства.",{"$f":"\"Раскрывается, если в п. \"&$B$51&\" внесено значение больше, чем 0%\"","v":"Раскрывается, если в п. 1.17 внесено значение больше, чем 0%"}]
[null,null,"российского производства",null,null,"Просьба заполнить информацией о проблемах, возникающих при эксплуатации оборудования российского производства.",{"$f":"\"Раскрывается, если в п. \"&$B$51&\" внесено значение больше, чем 100%\"","v":"Раскрывается, если в п. 1.17 внесено значение больше, чем 100%"}]
[null,"1.19","Планируется ли замена иностранного оборудования на российские аналоги:",null,null,"Проставляется отметка ◉ для одного из значений.",{"$f":"\"Раскрывается, если в п. \"&$B$51&\" внесено значение больше, чем 0%\"","v":"Раскрывается, если в п. 1.17 внесено значение больше, чем 0%"}]
[null,null,"да",null,null,null,"Раскрывается, если в п. 1.17 внесено значение больше, чем 0%"]
[null,null,"нет",null,null,null,"Раскрывается, если в п. 1.17 внесено значение больше, чем 0%"]
[null,"Раздел 2. Технология 5. Реализация и структура продаж домокомплектов по технологии 5"]
[null,"2.1","Текущий объём продаж домокомплектов по технологии 5:"]
[null,null,"в шт.",null,null,"Указывается значение количества продаваемых домокомплектов за год / квартал по технологии 5."]
[null,null,"в м²",null,null,"Указывается значение общей площади продаваемых домокомплектов за год / квартал по технологии 5."]
[null,null,"в млн руб.",null,null,"Указывается значение общей суммы продаваемых домокомплектов по рыночной цене за год / квартал по технологии 5."]
[null,"2.2","Каналы продаж домокомплектов по технологии 5:",null,null,"Проставляется отметка ☑ для одного или нескольких значений."]
[null,null,"прямой договор между производителем и заказчиком"]
[null,null,"дистрибьютор"]
[null,null,"дилерская сеть"]
[null,null,"Ваш вариант",null,null,"Просьба расшифровать."]
[null,"2.3","Варианты сборки домокомплекта по технологии 5:",null,null,"Проставляется отметка ☑ для одного или нескольких значений."]
[null,null,"собственная сборка"]
[null,null,"сборка аккредитованным подрядчиком"]
[null,null,"сборка неаккредитованным подрядчиком"]
[null,null,"самостоятельная сборка клиентом"]
[null,"2.4","Распределение вариантов сборки домокомплектов по долям по технологии 5, %:",null,null,"Если в п. 2.3 указано больше 1 ответа, то укажите распределение вариантов сборки домокомплектов по долям от общего объёма продаж в шт. за год / квартал по технологии 5.",{"$f":"\"Раскрывается, если в п. \"&$B$68&\" отмечено более 1 варианта ответа\"","v":"Раскрывается, если в п. 2.3 отмечено более 1 варианта ответа"}]
[null,null,"собственная сборка, %",null,null,null,{"$f":"\"Раскрывается, если в п. \"&$B$68&\" выбрано «\"&C69&\"»\"","v":"Раскрывается, если в п. 2.3 выбрано «собственная сборка»"}]
[null,null,"сборка аккредитованным подрядчиком, %",null,null,null,{"$f":"\"Раскрывается, если в п. \"&$B$68&\" выбрано «\"&C70&\"»\"","v":"Раскрывается, если в п. 2.3 выбрано «сборка аккредитованным подрядчиком»"}]
[null,null,"сборка неаккредитованным подрядчиком, %",null,null,null,"Раскрывается, если в п. 2.3 выбрано «сборка неаккредитованным подрядчиком»"]
[null,null,"самостоятельная сборка клиентом, %",null,null,null,"Раскрывается, если в п. 2.3 выбрано «самостоятельная сборка клиентом»"]
[null,"2.5","Типы заключаемых с клиентами договоров по технологии 5:",null,null,"Проставляется отметка ☑ для одного или нескольких значений."]
[null,null,"договор купли-продажи домокомплекта"]
[null,null,"договор подряда на строительство дома из домокомплекта"]
[null,"2.6","Какие из перечисленных компонентов могут быть включены в договор купли-продажи по технологии 5:",null,null,"Проставляется отметка ☑ для одного или нескольких значений.",{"$f":"\"Раскрывается, если в п. \"&$B$78&\" выбрано «\"&$C$79&\"»\"","v":"Раскрывается, если в п. 2.5 выбрано «договор купли-продажи домокомплекта»"}]
[null,null,"каркас",null,null,null,{"$f":"\"Раскрывается, если в п. \"&$B$78&\" выбрано «\"&$C$79&\"»\"","v":"Раскрывается, если в п. 2.5 выбрано «договор купли-продажи домокомплекта»"}]
[null,null,"стены и фасад",null,null,null,"Раскрывается, если в п. 2.5 выбрано «договор купли-продажи домокомплекта»"]
[null,null,"межкомнатные перекрытия",null,null,null,"Раскрывается, если в п. 2.5 выбрано «договор купли-продажи домокомплекта»"]
[null,null,"крыша",null,null,null,"Раскрывается, если в п. 2.5 выбрано «договор купли-продажи домокомплекта»"]
[null,null,"окна и двери",null,null,null,"Раскрывается, если в п. 2.5 выбрано «договор купли-продажи домокомплекта»"]
[null,null,"фундамент",null,null,null,"Раскрывается, если в п. 2.5 выбрано «договор купли-продажи домокомплекта»"]
[null,null,"дом с тёплым контуром",null,null,null,"Раскрывается, если в п. 2.5 выбрано «договор купли-продажи домокомплекта»"]
[null,null,"дом с чистовой отделкой",null,null,null,"Раскрывается, если в п. 2.5 выбрано «договор купли-продажи домокомплекта»"]
[null,null,"дом с отделкой под ключ",null,null,null,"Раскрывается, если в п. 2.5 выбрано «договор купли-продажи домокомплекта»"]
[null,"2.7","Какие работы могут быть включены в договор подряда по технологии 5:",null,null,"Проставляется отметка ☑ для одного или нескольких значений.",{"$f":"\"Раскрывается, если в п. \"&$B$78&\" выбрано «\"&$C$80&\"»\"","v":"Раскрывается, если в п. 2.5 выбрано «договор подряда на строительство дома из домокомплекта»"}]
[null,null,"сборка каркаса",null,null,null,{"$f":"\"Раскрывается, если в п. \"&$B$78&\" выбрано «\"&$C$80&\"»\"","v":"Раскрывается, если в п. 2.5 выбрано «договор подряда на строительство дома из домокомплекта»"}]
[null,null,"установка крыши",null,null,null,"Раскрывается, если в п. 2.5 выбрано «договор подряда на строительство дома из домокомплекта»"]
[null,null,"установка окон и дверей",null,null,null,"Раскрывается, если в п. 2.5 выбрано «договор подряда на строительство дома из домокомплекта»"]
[null,null,"постройка фундамента",null,null,null,"Раскрывается, если в п. 2.5 выбрано «договор подряда на строительство дома из домокомплекта»"]
[null,null,"обеспечение дома инженерными системами",null,null,null,"Раскрывается, если в п. 2.5 выбрано «договор подряда на строительство дома из домокомплекта»"]
[null,null,"обеспечение дома тёплым контуром",null,null,null,"Раскрывается, если в п. 2.5 выбрано «договор подряда на строительство дома из домокомплекта»"]
[null,null,"чистовая отделка дома",null,null,null,"Раскрывается, если в п. 2.5 выбрано «договор подряда на строительство дома из домокомплекта»"]
[null,null,"отделка дома под ключ",null,null,null,"Раскрывается, если в п. 2.5 выбрано «договор подряда на строительство дома из домокомплекта»"]
[null,"2.8","Доля реализации домокомплектов по типовому проекту / по типовому проекту с минимальными изменениями / по индивидуальному проекту по технологии 5, %:"]
[null,null,"по типовому проекту (без изменений в проекте), %",null,null,"Указывается доля реализованных домокомплектов по типовому проекту в общем объёме реализации в шт. за год / квартал по технологии 5."]
[null,null,"по типовому проекту с минимальными изменениями (изменения проекта повлекли изменение цены не более чем на 10%), %",null,null,"Указывается доля реализованных домокомплектов, изменения в проект которых привели к изменению цены не более чем на 10%, в общем объёме реализации в шт. за год / квартал по технологии 5."]
[null,null,"по индивидуальному проекту (изменения проекта повлекли изменение цены более чем на 10%), %",null,null,"Указывается доля реализованных домокомплектов, изменения в проект которых привели к изменению цены более чем на 10%, в общем объёме реализации в шт. за год / квартал по технологии 5."]
[null,"2.9","Средняя стоимость доставки домокомплекта в пересчете на 1 км по технологии 5, руб./км ",null,null,"Указывается значение средней стоимости доставки домокомплектов, проданных за год, в пересчете на 1 км по технологии 5."]
[null,"2.10","Регионы продажи домокомплектов, и соответствующая им доля в общем объёме реализации в % по технологии 5",null,null,"Указываются все регионы, в которые были проданы домокомплекты за год / квартал по технологии 5, и их доля в общем объёме продаж по технологии 5 соответствующего периода, которая приходится на эти регионы."]
[null,"2.11","В случае, если Вы проводите оценку потенциального спроса на домокомплекты в регионах присутствия, укажите значение спроса в регионах присутствия в год, шт.",null,null,"Указывается оценка потенциального спроса на домокомплекты в регионах присутствия в шт. в год, в случае, если такая оценка производится."]
[null,"2.12","Планируете ли Вы расширение / увеличение регионов продаж домокомплектов в 2023 году по технологии 5:",null,null,"Проставляется отметка ◉ для одного из значений."]
[null,null,"да"]
[null,null,"нет"]
[null,"2.13","Доля продаж домокомплектов с тёплым контуром / с чистовой отделкой / под ключ по технологии 5, %:"]
[null,null,"с холодным контуром, %",null,null,"Указывается доля количества заключенных договоров продажи домокомплектов с холодным контуром от общего объёма продаж компании в шт. за год / квартал по технологии 5."]
[null,null,"с тёплым контуром, %",null,null,"Указывается доля количества заключенных договоров продажи домокомплектов с тёплым контуром от общего объёма продаж компании в шт. за год / квартал по технологии 5."]
[null,null,"чистовой отделкой, %",null,null,"Указывается доля количества заключенных договоров продажи домокомплектов с чистовой отделкой от общего объёма продаж компании в шт. за год / квартал по технологии 5."]
[null,null,"отделкой под ключ, %",null,null,"Указывается доля количества заключенных договоров продажи домокомплектов отделкой под ключ от общего объёма продаж компании в шт. за год / квартал по технологии 5."]
[null,"2.14","Средняя стоимость реализуемых домокомплектов с тёплым контуром / с чистовой отделкой / под ключ, млн руб. по технологии 5:"]
[null,null,"с холодным контуром, млн руб.",null,null,"Указывается значение средней стоимости проданных за год домокомплектов без отделки, инженерного оборудования и утепления в млн руб. за год / квартал по технологии 5."]
[null,null,"с тёплым контуром, млн руб.",null,null,"Указывается значение средней стоимости проданных за год домокомплектов без отделки и инженерного оборудования в млн руб. за год / квартал по технологии 5."]
[null,null,"чистовой отделкой, млн руб.",null,null,"Указывается значение средней стоимости проданных за год домокомплектов с чистовой отделкой и инженерным оборудованием в млн руб. за год / квартал по технологии 5."]
[null,null,"отделкой под ключ, включая инженерные сети, млн руб.",null,null,"Указывается значение средней стоимости проданных за год домокомплектов с отделкой под ключ и инженерным оборудованием в млн руб. за год / квартал по технологии 5."]
[null,"2.15","Доля продаж с привлечением ипотечного кредита по технологии 5, %",null,null,"Указывается значение отношения количества заключенных договоров, оплата которых производится с привлечением кредитных средств, к общему количеству заключенных договоров за год / квартал по технологии 5."]
[null,"2.16","Применение льготных ипотечных программ по технологии 5:",null,null,"Проставляется отметка ☑ для одного или нескольких значений.\nУказываются льготные ипотечные программы, которые используют покупатели домокомплектов по технологии 5."]
[null,null,"льготная ипотека"]
[null,null,"семейная ипотека"]
[null,null,"сельская ипотека"]
[null,null,"ИТ-ипотека"]
[null,null,"дальневосточная ипотека"]
[null,"2.17","Распределение доли льготных ипотечных программ по технологии 5, %:",null,null,null,{"$f":"\"Раскрывается, если в п. \"&$B$121&\" выбран по крайней мере 1 вариант ответа\"","v":"Раскрывается, если в п. 2.16 выбран по крайней мере 1 вариант ответа"}]
[null,null,"льготная ипотека, %",null,null,"Указывается значение отношения количества заключенных договоров с применением программы льготной ипотеки к общему количеству заключенных договоров за год / квартал по технологии 5.",{"$f":"\"Раскрывается, если в п. \"&$B$121&\" выбрано «\"&C122&\"»\"","v":"Раскрывается, если в п. 2.16 выбрано «льготная ипотека»"}]
[null,null,"семейная ипотека, %",null,null,"Указывается значение отношения количества заключенных договоров с применением программы семейной ипотеки к общему количеству заключенных договоров за год / квартал по технологии 5.",{"$f":"\"Раскрывается, если в п. \"&$B$121&\" выбрано «\"&C123&\"»\"","v":"Раскрывается, если в п. 2.16 выбрано «семейная ипотека»"}]
[null,null,"сельская ипотека, %",null,null,"Указывается значение отношения количества заключенных договоров с применением программы сельской ипотеки к общему количеству заключенных договоров за год / квартал по технологии 5.",{"$f":"\"Раскрывается, если в п. \"&$B$121&\" выбрано «\"&C124&\"»\"","v":"Раскрывается, если в п. 2.16 выбрано «сельская ипотека»"}]
[null,null,"ИТ-ипотека, %",null,null,"Указывается значение отношения количества заключенных договоров с применением программы ИТ-ипотеки к общему количеству заключенных договоров за год / квартал по технологии 5.",{"$f":"\"Раскрывается, если в п. \"&$B$121&\" выбрано «\"&C125&\"»\"","v":"Раскрывается, если в п. 2.16 выбрано «ИТ-ипотека»"}]
[null,null,"дальневосточная ипотека, %",null,null,"Указывается значение отношения количества заключенных договоров с применением программы дальневосточной ипотеки к общему количеству заключенных договоров за год / квартал. по технологии 5",{"$f":"\"Раскрывается, если в п. \"&$B$121&\" выбрано «\"&C126&\"»\"","v":"Раскрывается, если в п. 2.16 выбрано «дальневосточная ипотека»"}]
[null,"2.18","Банки-партнёры по ипотечному кредитованию при реализации домокомплектов по технологии 5",null,null,"Указываются все банки-партнёры по ипотечному кредитованию при реализации домокомплектов по технологии 5."]
[null,"2.19","Распределение доли продаж домокомплектов, реализованных по договору купли-продажи, по ценовым сегментам по технологии 5, %:",null,null,null,{"$f":"\"Раскрывается, если в п. \"&$B$78&\" выбрано «\"&$C$79&\"»\"","v":"Раскрывается, если в п. 2.5 выбрано «договор купли-продажи домокомплекта»"}]
[null,null,"стоимостью менее 3,5 млн руб., %",null,null,"Указывается доля продаж домокомплектов, реализованных по договору купли-продажи, стоимостью менее 3,5 млн руб. от общего количества продаж домокомплектов в шт. за год / квартал по технологии 5.","Раскрывается, если в п. 2.5 выбрано «договор купли-продажи домокомплекта»"]
[null,null,"стоимостью от 3,5 млн руб. до 7 млн руб., %",null,null,"Указывается доля продаж домокомплектов, реализованных по договору купли-продажи, стоимостью от 3,5 млн руб. до 7 млн руб. от общего количества продаж домокомплектов в шт. за год / квартал по технологии 5.","Раскрывается, если в п. 2.5 выбрано «договор купли-продажи домокомплекта»"]
[null,null,"стоимостью более 7 млн руб., %",null,null,"Указывается доля продаж домокомплектов, реализованных по договору купли-продажи, стоимостью более 7 млн руб. от общего количества продаж домокомплектов в шт. за год / квартал по технологии 5.","Раскрывается, если в п. 2.5 выбрано «договор купли-продажи домокомплекта»"]
[null,"2.20","Распределение доли продаж домокомплектов, реализованных по договору подряда, по ценовым сегментам по технологии 5, %:",null,null,null,{"$f":"\"Раскрывается, если в п. \"&$B$78&\" выбрано «\"&$C$80&\"»\"","v":"Раскрывается, если в п. 2.5 выбрано «договор подряда на строительство дома из домокомплекта»"}]
[null,null,"стоимостью менее 3,5 млн руб., %",null,null,"Указывается доля продаж домокомплектов, реализованных по договору подряда, стоимостью менее 3,5 млн руб. от общего количества продаж домокомплектов в шт. за год / квартал по технологии 5.",{"$f":"\"Раскрывается, если в п. \"&$B$78&\" выбрано «\"&$C$80&\"»\"","v":"Раскрывается, если в п. 2.5 выбрано «договор подряда на строительство дома из домокомплекта»"}]
[null,null,"стоимостью от 3,5 млн руб. до 7 млн руб., %",null,null,"Указывается доля продаж домокомплектов, реализованных по договору подряда, стоимостью от 3,5 млн руб. до 7 млн руб. от общего количества продаж домокомплектов в шт. за год / квартал по технологии 5.","Раскрывается, если в п. 2.5 выбрано «договор подряда на строительство дома из домокомплекта»"]
[null,null,"стоимостью более 7 млн руб., %",null,null,"Указывается доля продаж домокомплектов, реализованных по договору подряда, стоимостью более 7 млн руб. от общего количества продаж домокомплектов в шт. за год / квартал по технологии 5.","Раскрывается, если в п. 2.5 выбрано «договор подряда на строительство дома из домокомплекта»"]
[null,"2.21","Являетесь ли Вы участником программы Минпромторга на получение субсидии для компенсации 10%-скидки:",null,null,"Проставляется отметка ◉ для одного из значений. Ссылка на постановление Правительства РФ о предоставлении субсидии: http://government.ru/docs/all/144380/"]
[null,null,"да"]
[null,null,"нет"]
[null,"2.22","Доля продаж домокомплектов с применением скидки от Минпромторга по технологии 5, %",null,null,"Указывается доля объёма продаж домокомплектов с учетом программы Минпромторга от общего объёма продаж компании за год / квартал по технологии 5.",{"$f":"\"Раскрывается, если в п. \"&$B$142&\" выбрано «да»\"","v":"Раскрывается, если в п. 2.21 выбрано «да»"}]
[null,"2.23","В случае, если Ваша компания выполняет сборку домокомплектов своими силами, укажите себестоимость работ по монтажу домокомплекта по технологии 5 в пересчёте на 1 м², руб./м²",null,null,"Указывается значение средней стоимости сборки домокомплектов по технологии 5, проданных за год, в пересчете на 1 м², в случае, если Ваша компания выполняет сборку домокомплектов своими силами."]
[null,"Раздел 3. Технология 5. Типовые домокомплекты - ТОП-3 по количеству продаж в шт. за год / квартал по технологии 5"]
[null,"3.1","ТОП-1"]
[null,"3.1.1","Домокомплект, который занимает Топ-1 в структуре продаж по технологии 5",null,null,"Указывается ID / Номенклатурный номер / ссылка на проект домокомплекта, который занимает Топ-1 структуре продаж за год / квартал по технологии 5."]
[null,"3.1.2","Доля продаж домокомплекта в общей выручке компании, %",null,null,"Указывается доля продаж домокомплекта в общей выручке компании за год / квартал."]
[null,"3.1.3","Цена домокомплекта, млн руб.",null,null,"Указывается цена домокомплекта в млн руб."]
[null,"3.1.4","Площадь домокомплекта, м²",null,null,"Указывается площадь домокомплекта в м²."]
[null,"3.1.5","Этажность домокомплекта, шт.",null,null,"Указывается количество этажей в домокомплекте в шт."]
[null,"3.1.6","Количество комнат в домокомплекте, шт.",null,null,"Указывается количество комнат в домокомплекте в шт."]
[null,"3.1.7","Наличие отделки домокомплекта ",null,null,"Проставляется отметка ☑ для одного или нескольких значений."]
[null,null,"холодный контур"]
[null,null,"тёплый контур"]
[null,null,"чистовая отделка"]
[null,null,"отделка под ключ"]
[null,"3.2","ТОП-2"]
[null,"3.2.1","Домокомплект, который занимает Топ-1 в структуре продаж по технологии 5",null,null,"Указывается ID / Номенклатурный номер / ссылка на проект домокомплекта, который занимает Топ-1 структуре продаж за год / квартал по технологии 5."]
[null,"3.2.2","Доля продаж домокомплекта в общей выручке компании, %",null,null,"Указывается доля продаж домокомплекта в общей выручке компании за год / квартал."]
[null,"3.2.3","Цена домокомплекта, млн руб.",null,null,"Указывается цена домокомплекта в млн руб."]
[null,"3.2.4","Площадь домокомплекта, м²",null,null,"Указывается площадь домокомплекта в м²."]
[null,"3.2.5","Этажность домокомплекта, шт.",null,null,"Указывается количество этажей в домокомплекте в шт."]
[null,"3.2.6","Количество комнат в домокомплекте, шт.",null,null,"Указывается количество комнат в домокомплекте в шт."]
[null,"3.2.7","Наличие отделки домокомплекта ",null,null,"Проставляется отметка ☑ для одного или нескольких значений."]
[null,null,"холодный контур"]
[null,null,"тёплый контур"]
[null,null,"чистовая отделка"]
[null,null,"отделка под ключ"]
[null,"3.3","ТОП-3"]
[null,"3.3.1","Домокомплект, который занимает Топ-1 в структуре продаж по технологии 5",null,null,"Указывается ID / Номенклатурный номер / ссылка на проект домокомплекта, который занимает Топ-1 структуре продаж за год / квартал по технологии 5."]
[null,"3.3.2","Доля продаж домокомплекта в общей выручке компании, %",null,null,"Указывается доля продаж домокомплекта в общей выручке компании за год / квартал."]
[null,"3.3.3","Цена домокомплекта, млн руб.",null,null,"Указывается цена домокомплекта в млн руб."]
[null,"3.3.4","Площадь домокомплекта, м²",null,null,"Указывается площадь домокомплекта в м²."]
[null,"3.3.5","Этажность домокомплекта, шт.",null,null,"Указывается количество этажей в домокомплекте в шт."]
[null,"3.3.6","Количество комнат в домокомплекте, шт.",null,null,"Указывается количество комнат в домокомплекте в шт."]
[null,"3.3.7","Наличие отделки домокомплекта ",null,null,"Проставляется отметка ☑ для одного или нескольких значений."]
[null,null,"холодный контур"]
[null,null,"тёплый контур"]
[null,null,"чистовая отделка"]
[null,null,"отделка под ключ"]